Workbook

Sheet Instructions

Sheet erf Compare
A1: Argument | B1: Series | C1: XL 2010 | D1: Presserf | E1: Winitzki | F1: Abramowitz 4 | G1: Abramowitz 6 | H1: Lether1 | I1: Lether2
A2: 6 | B2: =deverf(A2) -> 1 | C2: =ERF(A2) -> 1 | D2: =presserf(A2) -> 1 | E2: =winierf(A2) -> 1 | F2: =abra4(A2) -> 0.9999999937 | G2: =abra6(A2) -> 1 | H2: =lether1(A2) -> 1 | I2: =lether2(A2) -> 1
A3: =A2-0.1 -> 5.9 | B3: =deverf(A3) -> 1 | C3: =ERF(A3) -> 1 | D3: =presserf(A3) -> 1 | E3: =winierf(A3) -> 1 | F3: =abra4(A3) -> 0.9999999919 | G3: =abra6(A3) -> 1 | H3: =lether1(A3) -> 1 | I3: =lether2(A3) -> 1
A4: =A3-0.1 -> 5.8 | B4: 1 | C4: 1 | D4: 1 | E4: 1 | F4: 0.9999999896 | G4: 1 | H4: 1 | I4: 1
A5: 5.7 | B5: 1 | C5: 1 | D5: 1 | E5: 1 | F5: 0.9999999865 | G5: 1 | H5: 1 | I5: 1
A6: 5.6 | B6: 1 | C6: 1 | D6: 1 | E6: 1 | F6: 0.9999999824 | G6: 1 | H6: 1 | I6: 1
A7: 5.5 | B7: 1 | C7: 1 | D7: 1 | E7: 1 | F7: 0.9999999769 | G7: 1 | H7: 1 | I7: 1
A8: 5.4 | B8: 1 | C8: 1 | D8: 1 | E8: 1 | F8: 0.9999999697 | G8: 1 | H8: 1 | I8: 1
A9: 5.3 | B9: 1 | C9: 1 | D9: 1 | E9: 1 | F9: 0.99999996 | G9: 1 | H9: 1 | I9: 1
A10: 5.2 | B10: 1 | C10: 1 | D10: 1 | E10: 1 | F10: 0.9999999471 | G10: 1 | H10: 1 | I10: 1
A11: 5.1 | B11: 1 | C11: 1 | D11: 1 | E11: 1 | F11: 0.9999999296 | G11: 1 | H11: 1 | I11: 1
A12: 5 | B12: 1 | C12: 1 | D12: 1 | E12: 1 | F12: 0.9999999059 | G12: 1 | H12: 0.9999999999 | I12: 1
A13: 4.9 | B13: 1 | C13: 1 | D13: 1 | E13: 1 | F13: 0.9999998736 | G13: 1 | H13: 0.9999999998 | I13: 1
A14: 4.8 | B14: 1 | C14: 1 | D14: 1 | E14: 1 | F14: 0.9999998295 | G14: 1 | H14: 0.9999999995 | I14: 1
A15: 4.7 | B15: 1 | C15: 1 | D15: 1 | E15: 0.9999999999 | F15: 0.999999769 | G15: 1 | H15: 0.9999999989 | I15: 1
A16: 4.6 | B16: 0.9999999999 | C16: 0.9999999999 | D16: 0.9999999999 | E16: 0.9999999998 | F16: 0.9999996854 | G16: 0.9999999999 | H16: 0.9999999977 | I16: 0.9999999999
A17: 4.5 | B17: 0.9999999998 | C17: 0.9999999998 | D17: 0.9999999998 | E17: 0.9999999996 | F17: 0.9999995693 | G17: 0.9999999998 | H17: 0.9999999952 | I17: 0.9999999997
A18: 4.4 | B18: 0.9999999995 | C18: 0.9999999995 | D18: 0.9999999995 | E18: 0.999999999 | F18: 0.9999994075 | G18: 0.9999999995 | H18: 0.9999999901 | I18: 0.9999999993
A19: 4.3 | B19: 0.9999999987 | C19: 0.9999999988 | D19: 0.9999999988 | E19: 0.9999999976 | F19: 0.9999991807 | G19: 0.9999999988 | H19: 0.9999999797 | I19: 0.9999999984
A20: 4.2 | B20: 0.999999997 | C20: 0.9999999971 | D20: 0.9999999971 | E20: 0.9999999943 | F20: 0.999998861 | G20: 0.9999999971 | H20: 0.999999959 | I20: 0.9999999962
A21: 4.1 | B21: 0.9999999929 | C21: 0.9999999933 | D21: 0.9999999933 | E21: 0.9999999867 | F21: 0.9999984081 | G21: 0.9999999933 | H21: 0.9999999183 | I21: 0.9999999913
A22: 4 | B22: 0.9999999836 | C22: 0.9999999846 | D22: 0.9999999846 | E22: 0.9999999695 | F22: 0.9999977631 | G22: 0.9999999845 | H22: 0.9999998393 | I22: 0.9999999804
A23: 3.9 | B23: 0.9999999629 | C23: 0.9999999652 | D23: 0.9999999652 | E23: 0.9999999314 | F23: 0.9999968397 | G23: 0.9999999651 | H23: 0.9999996884 | I23: 0.9999999567
A24: 3.8 | B24: 0.9999999177 | C24: 0.999999923 | D24: 0.999999923 | E24: 0.9999998486 | F24: 0.9999955106 | G24: 0.9999999228 | H24: 0.999999404 | I24: 0.9999999062
A25: 3.7 | B25: 0.9999998207 | C25: 0.9999998328 | D25: 0.9999998328 | E25: 0.9999996725 | F25: 0.9999935874 | G25: 0.9999998325 | H25: 0.9999988758 | I25: 0.9999998003
A26: 3.6 | B26: 0.9999996169 | C26: 0.9999996441 | D26: 0.9999996441 | E26: 0.9999993047 | F26: 0.9999907902 | G26: 0.9999996435 | H26: 0.9999979089 | I26: 0.9999995827
A27: 3.5 | B27: 0.9999991967 | C27: 0.9999992569 | D27: 0.9999992569 | E27: 0.9999985517 | F27: 0.9999867009 | G27: 0.9999992558 | H27: 0.9999961639 | I27: 0.9999991435
A28: 3.4 | B28: 0.9999983475 | C28: 0.999998478 | D28: 0.999998478 | E28: 0.9999970395 | F28: 0.9999806929 | G28: 0.999998476 | H28: 0.9999930601 | I28: 0.9999982737
A29: 3.3 | B29: 0.9999969423 | C29: 0.9999969423 | D29: 0.9999969423 | E29: 0.9999940617 | F29: 0.9999718239 | G29: 0.9999969389 | H29: 0.9999876185 | I29: 0.9999965831
A30: 3.2 | B30: 0.9999939742 | C30: 0.9999939742 | D30: 0.9999939742 | E30: 0.9999883106 | F30: 0.9999586724 | G30: 0.9999939685 | H30: 0.9999782151 | I30: 0.9999933582
A31: 3.1 | B31: 0.9999883513 | C31: 0.9999883513 | D31: 0.9999883513 | E31: 0.9999774179 | F31: 0.9999390886 | G31: 0.999988342 | H31: 0.9999621997 | I31: =lether2(A31) -> 0.9999873214
A32: 3 | B32: 0.9999779095 | C32: 0.9999779095 | D32: 0.9999779095 | E32: 0.9999571846 | F32: 0.9999098164 | G32: 0.9999778949 | H32: 0.9999353167 | I32: 0.9999762319
A33: 2.9 | B33: 0.9999589021 | C33: 0.9999589021 | D33: 0.9999589021 | E33: 0.999920327 | F33: 0.999865919 | G33: 0.9999588798 | H33: 0.9998908442 | I33: 0.999956242
A34: 2.8 | B34: 0.9999249868 | C34: 0.9999249868 | D34: 0.9999249868 | E34: 0.9998544838 | F34: 0.9997999123 | G34: 0.9999249539 | H34: 0.9998183402 | I34: 0.9999208843
A35: 2.7 | B35: 0.9998656673 | C35: 0.9998656673 | D35: 0.9998656672 | E35: 0.9997391386 | F35: 0.9997004656 | G35: 0.9998656205 | H35: 0.9997018543 | I35: 0.9998595199
A36: 2.6 | B36: 0.9997639656 | C36: 0.9997639656 | D36: 0.9997639656 | E36: 0.9995409993 | F36: 0.9995504697 | G36: 0.9997639018 | H36: 0.9995174348 | I36: 0.999755027
A37: 2.5 | B37: 0.999593048 | C37: 0.999593048 | D37: 0.9995930479 | E37: 0.9992072726 | F37: 0.9993241998 | G37: 0.9995929645 | H37: 0.9992297335 | I37: 0.9995804549
A38: 2.4 | B38: 0.9993114861 | C38: 0.9993114861 | D38: 0.9993114861 | E38: 0.9986561895 | F38: 0.9989832123 | G38: 0.9993113821 | H38: 0.9987874946 | I38: 0.9992943279
A39: 2.3 | B39: 0.9988568234 | C39: 0.9988568234 | D39: 0.9988568233 | E39: 0.9977641326 | F39: 0.9984705281 | G39: 0.9988567008 | H39: 0.9981177212 | I39: 0.9988342668
A40: 2.2 | B40: 0.9981371537 | C40: 0.9981371537 | D40: 0.9981371536 | E40: 0.9963488423 | F40: 0.9977025894 | G40: 0.9981370182 | H40: 0.9971183456 | I40: 0.9981086274
A41: 2.1 | B41: 0.9970205333 | C41: 0.9970205333 | D41: 0.9970205333 | E41: 0.9941485237 | F41: 0.9965584908 | G41: 0.9970203954 | H41: 0.9956493166 | I41: 0.9969859653
A42: 2 | B42: 0.995322265 | C42: 0.995322265 | D42: 0.995322265 | E42: 0.9907973226 | F42: 0.9948661386 | G42: 0.9953221396 | H42: 0.9935221527 | I42: 0.9952823423
A43: 1.9 | B43: 0.9927904292 | C43: 0.9927904292 | D43: 0.9927904294 | E43: 0.9857986785 | F43: 0.9923853897 | G43: 0.992790334 | H43: 0.9904882249 | I43: 0.992746826
A44: 1.8 | B44: 0.9890905016 | C44: 0.9890905016 | D44: 0.9890905022 | E44: 0.9784995274 | F44: 0.9887889495 | G44: 0.9890904538 | H44: 0.9862263171 | I44: 0.9890459972
A45: 1.7 | B45: 0.9837904586 | C45: 0.9837904586 | D45: 0.9837904597 | E45: 0.9680701857 | F45: 0.9836429035 | G45: 0.9837904702 | H45: 0.9803303682 | I45: 0.9837488538
A46: 1.6 | B46: 0.9763483833 | C46: 0.9763483833 | D46: 0.9763483854 | E46: 0.9534968138 | F46: 0.9763901196 | G46: 0.9763484558 | H46: 0.9722987082 | I46: 0.9763141355
A47: 1.5 | B47: 0.9661051465 | C47: 0.9661051465 | D47: 0.9661051497 | E47: 0.9335952595 | F47: 0.9663410766 | G47: 0.9661052664 | H47: 0.9615265214 | I47: 0.9660826865
A48: 1.4 | B48: 0.9522851198 | C48: 0.9522851198 | D48: 0.952285124 | E48: 0.9070562281 | F48: 0.9526773703 | G48: 0.9522852583 | H48: 0.9473036505 | I48: 0.9522779009
A49: 1.3 | B49: 0.9340079449 | C49: 0.9340079449 | D49: 0.9340079497 | E49: 0.8725313006 | F49: =abra4(A49) -> 0.9344725563 | G49: 0.9340080624 | H49: 0.9288201205 | I49: 0.9340173856
A50: 1.2 | B50: 0.9103139782 | C50: 0.9103139782 | D50: 0.910313982 | E50: 0.8287664354 | F50: =abra4(A50) -> 0.9107325734 | G50: 0.9103140355 | H50: 0.9051818214 | I50: 0.9103385779
A51: 1.1 | B51: 0.8802050696 | C51: 0.8802050696 | D51: 0.8802050702 | E51: 0.7747834708 | F51: 0.8804538809 | G51: 0.8802050432 | H51: 0.8754385629 | I51: 0.8802400545
A52: 1 | B52: 0.8427007929 | C52: 0.8427007929 | D52: 0.8427007878 | E52: 0.7101005239 | F52: 0.8426926634 | G52: 0.8427006897 | H52: 0.8386261153 | I52: 0.8427386245
A53: 0.9 | B53: 0.7969082124 | C53: 0.7969082124 | D53: 0.7969082 | E53: 0.6349697186 | F53: 0.7966348626 | G53: 0.7969080749 | H53: 0.7938228465 | I53: 0.7969401243
A54: 0.8 | B54: 0.7421009647 | C54: 0.7421009647 | D54: 0.7421009472 | E54: 0.5505973143 | F54: 0.7416564004 | G54: 0.7421008597 | H54: 0.7402201468 | I54: 0.7421193666
A55: 0.7 | B55: 0.6778011938 | C55: 0.6778011938 | D55: 0.6778011795 | E55: 0.4593004128 | F55: 0.677366863 | G55: 0.6778011819 | H55: 0.67720408 | I55: 0.677802339
A56: 0.6 | B56: 0.6038560908 | C56: 0.6038560908 | D56: 0.6038560933 | E56: 0.3645502904 | F56: 0.6036376302 | G56: 0.6038561848 | H56: 0.6044437524 | I56: 0.6038419871
A57: 0.5 | B57: 0.5204998778 | C57: 0.5204998778 | D57: 0.5204999077 | E57: 0.2708592438 | F57: 0.5206248273 | G57: 0.5205000163 | H57: 0.5219799621 | I57: 0.5204782472
A58: 0.4 | B58: 0.428392355 | C58: 0.428392355 | D58: 0.4283924029 | E58: 0.1834880254 | F58: 0.4288056625 | G58: 0.4283924235 | H58: 0.4303060628 | I58: 0.4283737863
A59: 0.3 | B59: 0.3286267595 | C59: 0.3286267595 | D59: 0.3286267841 | E59: 0.1079833323 | F59: 0.329051003 | G59: 0.3286266827 | H59: 0.3304319298 | I59: 0.3286193056
A60: 0.2 | B60: 0.2227025892 | C60: 0.2227025892 | D60: 0.2227025593 | E60: 0.04959369042 | F60: 0.222755465 | G60: 0.2227024579 | H60: 0.2239217454 | I60: 0.2227060644
A61: 0.1 | B61: 0.112462916 | C61: 0.112462916 | D61: 0.1124629288 | E61: 0.01264772143 | F61: 0.112037131 | G61: 0.1124629656 | H61: 0.1128972278 | I61: 0.1124679407
A62: 4.579669977e-15 | B62: 5.167604194e-15 | C62: 5.167604194e-15 | D62: -2.999999538e-08 | E62: 0 | F62: 5.329070518e-15 | G62: 1.000005381e-09 | H62: 5.218048216e-15 | I62: 5.140974994e-15
A63: -0.1 | B63: -0.112462916 | C63: -0.112462916 | D63: -0.1124629288 | E63: -0.01264772143 | F63: -0.112037131 | G63: -0.1124629656 | H63: -0.1128972278 | I63: -0.1124679407
A64: -0.2 | B64: -0.2227025892 | C64: -0.2227025892 | D64: -0.2227025593 | E64: -0.04959369042 | F64: -0.222755465 | G64: -0.2227024579 | H64: -0.2239217454 | I64: -0.2227060644
A65: -0.3 | B65: -0.3286267595 | C65: -0.3286267595 | D65: -0.3286267841 | E65: -0.1079833323 | F65: -0.329051003 | G65: -0.3286266827 | H65: -0.3304319298 | I65: -0.3286193056
A66: -0.4 | B66: -0.428392355 | C66: -0.428392355 | D66: -0.4283924029 | E66: -0.1834880254 | F66: -0.4288056625 | G66: -0.4283924235 | H66: -0.4303060628 | I66: -0.4283737863
A67: -0.5 | B67: =deverf(A67) -> -0.5204998778 | C67: =ERF(A67) -> -0.5204998778 | D67: =presserf(A67) -> -0.5204999077 | E67: =winierf(A67) -> -0.2708592438 | F67: -0.5206248273 | G67: =abra6(A67) -> -0.5205000163 | H67: =lether1(A67) -> -0.5219799621 | I67: =lether2(A67) -> -0.5204782472
A68: =A67-0.1 -> -0.6 | B68: -0.6038560908 | C68: -0.6038560908 | D68: -0.6038560933 | E68: -0.3645502904 | F68: -0.6036376302 | G68: -0.6038561848 | H68: -0.6044437524 | I68: -0.6038419871
A69: -0.7 | B69: -0.6778011938 | C69: -0.6778011938 | D69: -0.6778011795 | E69: -0.4593004128 | F69: -0.677366863 | G69: -0.6778011819 | H69: -0.67720408 | I69: -0.677802339
A70: -0.8 | B70: -0.7421009647 | C70: -0.7421009647 | D70: -0.7421009472 | E70: -0.5505973143 | F70: -0.7416564004 | G70: -0.7421008597 | H70: -0.7402201468 | I70: -0.7421193666
A71: -0.9 | B71: -0.7969082124 | C71: -0.7969082124 | D71: -0.7969082 | E71: -0.6349697186 | F71: -0.7966348626 | G71: -0.7969080749 | H71: -0.7938228465 | I71: -0.7969401243
A72: -1 | B72: -0.8427007929 | C72: -0.8427007929 | D72: -0.8427007878 | E72: -0.7101005239 | F72: -0.8426926634 | G72: -0.8427006897 | H72: -0.8386261153 | I72: -0.8427386245
A73: -1.1 | B73: -0.8802050696 | C73: -0.8802050696 | D73: -0.8802050702 | E73: -0.7747834708 | F73: -0.8804538809 | G73: -0.8802050432 | H73: -0.8754385629 | I73: -0.8802400545
A74: -1.2 | B74: -0.9103139782 | C74: -0.9103139782 | D74: -0.910313982 | E74: -0.8287664354 | F74: -0.9107325734 | G74: -0.9103140355 | H74: -0.9051818214 | I74: -0.9103385779
A75: -1.3 | B75: -0.9340079449 | C75: -0.9340079449 | D75: -0.9340079497 | E75: -0.8725313006 | F75: -0.9344725563 | G75: -0.9340080624 | H75: -0.9288201205 | I75: -0.9340173856
A76: -1.4 | B76: -0.9522851198 | C76: -0.9522851198 | D76: -0.952285124 | E76: -0.9070562281 | F76: -0.9526773703 | G76: -0.9522852583 | H76: -0.9473036505 | I76: -0.9522779009
A77: -1.5 | B77: -0.9661051465 | C77: -0.9661051465 | D77: -0.9661051497 | E77: -0.9335952595 | F77: -0.9663410766 | G77: -0.9661052664 | H77: -0.9615265214 | I77: -0.9660826865
A78: -1.6 | B78: -0.9763483833 | C78: -0.9763483833 | D78: -0.9763483854 | E78: -0.9534968138 | F78: -0.9763901196 | G78: -0.9763484558 | H78: -0.9722987082 | I78: -0.9763141355
A79: -1.7 | B79: -0.9837904586 | C79: -0.9837904586 | D79: -0.9837904597 | E79: -0.9680701857 | F79: -0.9836429035 | G79: -0.9837904702 | H79: -0.9803303682 | I79: -0.9837488538
A80: -1.8 | B80: -0.9890905016 | C80: -0.9890905016 | D80: -0.9890905022 | E80: -0.9784995274 | F80: -0.9887889495 | G80: -0.9890904538 | H80: -0.9862263171 | I80: -0.9890459972
A81: -1.9 | B81: -0.9927904292 | C81: -0.9927904292 | D81: -0.9927904294 | E81: -0.9857986785 | F81: -0.9923853897 | G81: -0.992790334 | H81: -0.9904882249 | I81: -0.992746826
A82: -2 | B82: -0.995322265 | C82: -0.995322265 | D82: -0.995322265 | E82: -0.9907973226 | F82: -0.9948661386 | G82: -0.9953221396 | H82: -0.9935221527 | I82: -0.9952823423
A83: -2.1 | B83: -0.9970205333 | C83: -0.9970205333 | D83: -0.9970205333 | E83: -0.9941485237 | F83: -0.9965584908 | G83: -0.9970203954 | H83: -0.9956493166 | I83: -0.9969859653
A84: -2.2 | B84: -0.9981371537 | C84: -0.9981371537 | D84: -0.9981371536 | E84: -0.9963488423 | F84: -0.9977025894 | G84: -0.9981370182 | H84: -0.9971183456 | I84: -0.9981086274
A85: -2.3 | B85: -0.9988568234 | C85: -0.9988568234 | D85: -0.9988568233 | E85: -0.9977641326 | F85: -0.9984705281 | G85: -0.9988567008 | H85: -0.9981177212 | I85: -0.9988342668
A86: -2.4 | B86: -0.9993114861 | C86: -0.9993114861 | D86: -0.9993114861 | E86: -0.9986561895 | F86: -0.9989832123 | G86: -0.9993113821 | H86: -0.9987874946 | I86: -0.9992943279
A87: -2.5 | B87: -0.999593048 | C87: -0.999593048 | D87: -0.9995930479 | E87: -0.9992072726 | F87: -0.9993241998 | G87: -0.9995929645 | H87: -0.9992297335 | I87: -0.9995804549
A88: -2.6 | B88: -0.9997639656 | C88: -0.9997639656 | D88: -0.9997639656 | E88: -0.9995409993 | F88: -0.9995504697 | G88: -0.9997639018 | H88: -0.9995174348 | I88: -0.999755027
A89: -2.7 | B89: -0.9998656673 | C89: -0.9998656673 | D89: -0.9998656672 | E89: -0.9997391386 | F89: -0.9997004656 | G89: -0.9998656205 | H89: -0.9997018543 | I89: -0.9998595199
A90: -2.8 | B90: -0.9999249868 | C90: -0.9999249868 | D90: -0.9999249868 | E90: -0.9998544838 | F90: -0.9997999123 | G90: -0.9999249539 | H90: -0.9998183402 | I90: -0.9999208843
A91: -2.9 | B91: -0.9999589021 | C91: -0.9999589021 | D91: -0.9999589021 | E91: -0.999920327 | F91: -0.999865919 | G91: -0.9999588798 | H91: -0.9998908442 | I91: -0.999956242
A92: -3 | B92: -0.9999779095 | C92: -0.9999779095 | D92: -0.9999779095 | E92: -0.9999571846 | F92: -0.9999098164 | G92: -0.9999778949 | H92: -0.9999353167 | I92: -0.9999762319
A93: -3.1 | B93: -0.9999883513 | C93: -0.9999883513 | D93: -0.9999883513 | E93: -0.9999774179 | F93: -0.9999390886 | G93: -0.999988342 | H93: -0.9999621997 | I93: -0.9999873214
A94: -3.2 | B94: -0.9999939742 | C94: -0.9999939742 | D94: -0.9999939742 | E94: -0.9999883106 | F94: -0.9999586724 | G94: -0.9999939685 | H94: -0.9999782151 | I94: -0.9999933582
A95: -3.3 | B95: -0.9999969423 | C95: -0.9999969423 | D95: -0.9999969423 | E95: -0.9999940617 | F95: -0.9999718239 | G95: -0.9999969389 | H95: -0.9999876185 | I95: -0.9999965831
A96: -3.4 | B96: -0.999998478 | C96: -0.999998478 | D96: -0.999998478 | E96: -0.9999970395 | F96: -0.9999806929 | G96: -0.999998476 | H96: -0.9999930601 | I96: -0.9999982737
A97: -3.5 | B97: -0.9999991967 | C97: -0.9999992569 | D97: -0.9999992569 | E97: -0.9999985517 | F97: -0.9999867009 | G97: -0.9999992558 | H97: -0.9999961639 | I97: -0.9999991435
A98: -3.6 | B98: -0.9999996169 | C98: -0.9999996441 | D98: -0.9999996441 | E98: -0.9999993047 | F98: -0.9999907902 | G98: -0.9999996435 | H98: -0.9999979089 | I98: -0.9999995827
A99: -3.7 | B99: -0.9999998207 | C99: -0.9999998328 | D99: -0.9999998328 | E99: -0.9999996725 | F99: -0.9999935874 | G99: -0.9999998325 | H99: -0.9999988758 | I99: -0.9999998003
A100: -3.8 | B100: -0.9999999177 | C100: -0.999999923 | D100: -0.999999923 | E100: -0.9999998486 | F100: -0.9999955106 | G100: -0.9999999228 | H100: -0.999999404 | I100: -0.9999999062
A101: -3.9 | B101: -0.9999999629 | C101: -0.9999999652 | D101: -0.9999999652 | E101: -0.9999999314 | F101: -0.9999968397 | G101: -0.9999999651 | H101: -0.9999996884 | I101: -0.9999999567
A102: -4 | B102: -0.9999999836 | C102: -0.9999999846 | D102: -0.9999999846 | E102: -0.9999999695 | F102: -0.9999977631 | G102: -0.9999999845 | H102: -0.9999998393 | I102: -0.9999999804
A103: -4.1 | B103: -0.9999999929 | C103: -0.9999999933 | D103: -0.9999999933 | E103: -0.9999999867 | F103: -0.9999984081 | G103: -0.9999999933 | H103: -0.9999999183 | I103: -0.9999999913
A104: -4.2 | B104: -0.999999997 | C104: -0.9999999971 | D104: -0.9999999971 | E104: -0.9999999943 | F104: -0.999998861 | G104: -0.9999999971 | H104: -0.999999959 | I104: -0.9999999962
A105: -4.3 | B105: -0.9999999987 | C105: -0.9999999988 | D105: -0.9999999988 | E105: -0.9999999976 | F105: -0.9999991807 | G105: -0.9999999988 | H105: -0.9999999797 | I105: -0.9999999984
A106: -4.4 | B106: -0.9999999995 | C106: -0.9999999995 | D106: -0.9999999995 | E106: -0.999999999 | F106: -0.9999994075 | G106: -0.9999999995 | H106: -0.9999999901 | I106: -0.9999999993
A107: -4.5 | B107: -0.9999999998 | C107: -0.9999999998 | D107: -0.9999999998 | E107: -0.9999999996 | F107: -0.9999995693 | G107: -0.9999999998 | H107: -0.9999999952 | I107: -0.9999999997
A108: -4.6 | B108: -0.9999999999 | C108: -0.9999999999 | D108: -0.9999999999 | E108: -0.9999999998 | F108: -0.9999996854 | G108: -0.9999999999 | H108: -0.9999999977 | I108: -0.9999999999
A109: -4.7 | B109: -1 | C109: -1 | D109: -1 | E109: -0.9999999999 | F109: -0.999999769 | G109: -1 | H109: -0.9999999989 | I109: -1
A110: -4.8 | B110: -1 | C110: -1 | D110: -1 | E110: -1 | F110: -0.9999998295 | G110: -1 | H110: -0.9999999995 | I110: -1
A111: -4.9 | B111: -1 | C111: -1 | D111: -1 | E111: -1 | F111: -0.9999998736 | G111: -1 | H111: -0.9999999998 | I111: -1
A112: -5 | B112: -1 | C112: -1 | D112: -1 | E112: -1 | F112: -0.9999999059 | G112: -1 | H112: -0.9999999999 | I112: -1
A113: -5.1 | B113: -1 | C113: -1 | D113: -1 | E113: -1 | F113: -0.9999999296 | G113: -1 | H113: -1 | I113: -1
A114: -5.2 | B114: -1 | C114: -1 | D114: -1 | E114: -1 | F114: =abra4(A114) -> -0.9999999471 | G114: -1 | H114: -1 | I114: -1
A115: -5.3 | B115: -1 | C115: -1 | D115: -1 | E115: -1 | F115: -0.99999996 | G115: -1 | H115: -1 | I115: -1
A116: -5.4 | B116: -1 | C116: -1 | D116: -1 | E116: -1 | F116: -0.9999999697 | G116: -1 | H116: -1 | I116: -1
A117: -5.5 | B117: -1 | C117: -1 | D117: -1 | E117: -1 | F117: -0.9999999769 | G117: -1 | H117: -1 | I117: -1
A118: -5.6 | B118: -1 | C118: -1 | D118: -1 | E118: -1 | F118: -0.9999999824 | G118: -1 | H118: -1 | I118: -1
A119: -5.7 | B119: -1 | C119: -1 | D119: -1 | E119: -1 | F119: -0.9999999865 | G119: -1 | H119: -1 | I119: -1
A120: -5.8 | B120: -1 | C120: -1 | D120: -1 | E120: -1 | F120: -0.9999999896 | G120: -1 | H120: -1 | I120: -1
A121: -5.9 | B121: -1 | C121: -1 | D121: -1 | E121: -1 | F121: -0.9999999919 | G121: -1 | H121: -1 | I121: -1
A122: -6 | B122: -1 | C122: -1 | D122: -1 | E122: -1 | F122: -0.9999999937 | G122: -1 | H122: -1 | I122: -1
A123: -6.1 | B123: -1 | C123: -1 | D123: -1 | E123: -1 | F123: -0.9999999951 | G123: -1 | H123: -1 | I123: -1

Sheet Differences
A1: Argument | B1: XL 2010 - Series | C1: Press - Series | D1: Winitzki - Series | E1: Abra4 - Series | F1: Abra6 - Series | G1: Lether1 - Series | H1: Lether2 - Series
A2: ='erf Compare'!A2 -> 6 | B2: ='erf Compare'!C2-'erf Compare'!B2 -> 0 | C2: ='erf Compare'!D2-'erf Compare'!B2 -> 0 | D2: ='erf Compare'!E2-'erf Compare'!B2 -> 0 | E2: ='erf Compare'!F2-'erf Compare'!B2 -> -6.264688546e-09 | F2: ='erf Compare'!G2-'erf Compare'!B2 -> 0 | G2: ='erf Compare'!H2-'erf Compare'!B2 -> -1.521005544e-14 | H2: ='erf Compare'!I2-'erf Compare'!B2 -> 0
A3: ='erf Compare'!A3 -> 5.9 | B3: ='erf Compare'!C3-'erf Compare'!B3 -> 0 | C3: ='erf Compare'!D3-'erf Compare'!B3 -> 0 | D3: ='erf Compare'!E3-'erf Compare'!B3 -> 0 | E3: ='erf Compare'!F3-'erf Compare'!B3 -> -8.069636293e-09 | F3: ='erf Compare'!G3-'erf Compare'!B3 -> 0 | G3: ='erf Compare'!H3-'erf Compare'!B3 -> -3.896882816e-14 | H3: ='erf Compare'!I3-'erf Compare'!B3 -> 0
A4: ='erf Compare'!A4 -> 5.8 | B4: ='erf Compare'!C4-'erf Compare'!B4 -> 0 | C4: ='erf Compare'!D4-'erf Compare'!B4 -> 0 | D4: ='erf Compare'!E4-'erf Compare'!B4 -> 0 | E4: ='erf Compare'!F4-'erf Compare'!B4 -> -1.043315789e-08 | F4: ='erf Compare'!G4-'erf Compare'!B4 -> 0 | G4: ='erf Compare'!H4-'erf Compare'!B4 -> -9.847678228e-14 | H4: ='erf Compare'!I4-'erf Compare'!B4 -> 0
A5: ='erf Compare'!A5 -> 5.7 | B5: ='erf Compare'!C5-'erf Compare'!B5 -> 0 | C5: ='erf Compare'!D5-'erf Compare'!B5 -> 0 | D5: ='erf Compare'!E5-'erf Compare'!B5 -> -8.881784197e-16 | E5: ='erf Compare'!F5-'erf Compare'!B5 -> -1.354019252e-08 | F5: ='erf Compare'!G5-'erf Compare'!B5 -> 0 | G5: ='erf Compare'!H5-'erf Compare'!B5 -> -2.452482661e-13 | H5: ='erf Compare'!I5-'erf Compare'!B5 -> -9.992007222e-16
A6: ='erf Compare'!A6 -> 5.6 | B6: ='erf Compare'!C6-'erf Compare'!B6 -> 0 | C6: ='erf Compare'!D6-'erf Compare'!B6 -> 0 | D6: ='erf Compare'!E6-'erf Compare'!B6 -> -2.775557562e-15 | E6: ='erf Compare'!F6-'erf Compare'!B6 -> -1.764094926e-08 | F6: ='erf Compare'!G6-'erf Compare'!B6 -> 0 | G6: ='erf Compare'!H6-'erf Compare'!B6 -> -6.01962924e-13 | H6: ='erf Compare'!I6-'erf Compare'!B6 -> -2.775557562e-15
A7: ='erf Compare'!A7 -> 5.5 | B7: ='erf Compare'!C7-'erf Compare'!B7 -> 0 | C7: ='erf Compare'!D7-'erf Compare'!B7 -> 0 | D7: ='erf Compare'!E7-'erf Compare'!B7 -> -8.437694987e-15 | E7: ='erf Compare'!F7-'erf Compare'!B7 -> -2.307537461e-08 | F7: ='erf Compare'!G7-'erf Compare'!B7 -> 0 | G7: ='erf Compare'!H7-'erf Compare'!B7 -> -1.456834653e-12 | H7: ='erf Compare'!I7-'erf Compare'!B7 -> -7.993605777e-15
A8: ='erf Compare'!A8 -> 5.4 | B8: ='erf Compare'!C8-'erf Compare'!B8 -> 0 | C8: ='erf Compare'!D8-'erf Compare'!B8 -> 0 | D8: ='erf Compare'!E8-'erf Compare'!B8 -> -2.498001805e-14 | E8: ='erf Compare'!F8-'erf Compare'!B8 -> -3.03073302e-08 | F8: ='erf Compare'!G8-'erf Compare'!B8 -> 0 | G8: ='erf Compare'!H8-'erf Compare'!B8 -> -3.476219312e-12 | H8: ='erf Compare'!I8-'erf Compare'!B8 -> -2.187139359e-14
A9: ='erf Compare'!A9 -> 5.3 | B9: ='erf Compare'!C9-'erf Compare'!B9 -> 2.331468352e-15 | C9: ='erf Compare'!D9-'erf Compare'!B9 -> 2.331468352e-15 | D9: ='erf Compare'!E9-'erf Compare'!B9 -> -7.305267502e-14 | E9: ='erf Compare'!F9-'erf Compare'!B9 -> -3.997254316e-08 | F9: ='erf Compare'!G9-'erf Compare'!B9 -> 1.776356839e-15 | G9: ='erf Compare'!H9-'erf Compare'!B9 -> -8.177569732e-12 | H9: ='erf Compare'!I9-'erf Compare'!B9 -> -5.950795412e-14
A10: ='erf Compare'!A10 -> 5.2 | B10: ='erf Compare'!C10-'erf Compare'!B10 -> 7.105427358e-15 | C10: ='erf Compare'!D10-'erf Compare'!B10 -> 7.105427358e-15 | D10: ='erf Compare'!E10-'erf Compare'!B10 -> -2.093880624e-13 | E10: ='erf Compare'!F10-'erf Compare'!B10 -> -5.294617744e-08 | F10: ='erf Compare'!G10-'erf Compare'!B10 -> 5.662137426e-15 | G10: ='erf Compare'!H10-'erf Compare'!B10 -> -1.896405255e-11 | H10: ='erf Compare'!I10-'erf Compare'!B10 -> -1.578737141e-13
A11: ='erf Compare'!A11 -> 5.1 | B11: ='erf Compare'!C11-'erf Compare'!B11 -> 2.109423747e-14 | C11: ='erf Compare'!D11-'erf Compare'!B11 -> 2.109423747e-14 | D11: ='erf Compare'!E11-'erf Compare'!B11 -> -5.886402477e-13 | E11: ='erf Compare'!F11-'erf Compare'!B11 -> -7.043847738e-08 | F11: ='erf Compare'!G11-'erf Compare'!B11 -> 1.709743458e-14 | G11: ='erf Compare'!H11-'erf Compare'!B11 -> -4.334976822e-11 | H11: ='erf Compare'!I11-'erf Compare'!B11 -> -4.104494522e-13
A12: ='erf Compare'!A12 -> 5 | B12: ='erf Compare'!C12-'erf Compare'!B12 -> 6.117328866e-14 | C12: ='erf Compare'!D12-'erf Compare'!B12 -> 6.117328866e-14 | D12: ='erf Compare'!E12-'erf Compare'!B12 -> -1.622924017e-12 | E12: ='erf Compare'!F12-'erf Compare'!B12 -> -9.413073654e-08 | F12: ='erf Compare'!G12-'erf Compare'!B12 -> 5.084821453e-14 | G12: ='erf Compare'!H12-'erf Compare'!B12 -> -9.766920606e-11 | H12: ='erf Compare'!I12-'erf Compare'!B12 -> -1.043720665e-12
A13: ='erf Compare'!A13 -> 4.9 | B13: ='erf Compare'!C13-'erf Compare'!B13 -> 1.747491041e-13 | C13: ='erf Compare'!D13-'erf Compare'!B13 -> 1.747491041e-13 | D13: ='erf Compare'!E13-'erf Compare'!B13 -> -4.387601393e-12 | E13: ='erf Compare'!F13-'erf Compare'!B13 -> -1.263694153e-07 | F13: ='erf Compare'!G13-'erf Compare'!B13 -> 1.483257961e-13 | G13: ='erf Compare'!H13-'erf Compare'!B13 -> -2.168698554e-10 | H13: ='erf Compare'!I13-'erf Compare'!B13 -> -2.596700632e-12
A14: ='erf Compare'!A14 -> 4.8 | B14: ='erf Compare'!C14-'erf Compare'!B14 -> 4.899414208e-13 | C14: ='erf Compare'!D14-'erf Compare'!B14 -> 4.899414208e-13 | D14: ='erf Compare'!E14-'erf Compare'!B14 -> -1.163347196e-11 | E14: ='erf Compare'!F14-'erf Compare'!B14 -> -1.704443818e-07 | F14: ='erf Compare'!G14-'erf Compare'!B14 -> 4.239941731e-13 | G14: ='erf Compare'!H14-'erf Compare'!B14 -> -4.74530526e-10 | H14: ='erf Compare'!I14-'erf Compare'!B14 -> -6.318945367e-12
A15: ='erf Compare'!A15 -> 4.7 | B15: ='erf Compare'!C15-'erf Compare'!B15 -> 1.348143819e-12 | C15: ='erf Compare'!D15-'erf Compare'!B15 -> 1.348143819e-12 | D15: ='erf Compare'!E15-'erf Compare'!B15 -> -3.025191209e-11 | E15: ='erf Compare'!F15-'erf Compare'!B15 -> -2.309891692e-07 | F15: ='erf Compare'!G15-'erf Compare'!B15 -> 1.187383525e-12 | G15: ='erf Compare'!H15-'erf Compare'!B15 -> -1.023052199e-09 | H15: ='erf Compare'!I15-'erf Compare'!B15 -> -1.503341895e-11
A16: ='erf Compare'!A16 -> 4.6 | B16: ='erf Compare'!C16-'erf Compare'!B16 -> 3.640754365e-12 | C16: ='erf Compare'!D16-'erf Compare'!B16 -> 3.640754365e-12 | D16: ='erf Compare'!E16-'erf Compare'!B16 -> -7.715617034e-11 | E16: ='erf Compare'!F16-'erf Compare'!B16 -> -3.145584794e-07 | F16: ='erf Compare'!G16-'erf Compare'!B16 -> 3.257616399e-12 | G16: ='erf Compare'!H16-'erf Compare'!B16 -> -2.17289764e-09 | H16: ='erf Compare'!I16-'erf Compare'!B16 -> -3.495070899e-11
A17: ='erf Compare'!A17 -> 4.5 | B17: ='erf Compare'!C17-'erf Compare'!B17 -> 9.650391597e-12 | C17: ='erf Compare'!D17-'erf Compare'!B17 -> 9.650391597e-12 | D17: ='erf Compare'!E17-'erf Compare'!B17 -> -1.930118287e-10 | E17: ='erf Compare'!F17-'erf Compare'!B17 -> -4.304631763e-07 | F17: ='erf Compare'!G17-'erf Compare'!B17 -> 8.757883307e-12 | G17: ='erf Compare'!H17-'erf Compare'!B17 -> -4.545911647e-09 | H17: ='erf Compare'!I17-'erf Compare'!B17 -> -7.935641033e-11
A18: ='erf Compare'!A18 -> 4.4 | B18: ='erf Compare'!C18-'erf Compare'!B18 -> 2.510847086e-11 | C18: ='erf Compare'!D18-'erf Compare'!B18 -> 2.510858188e-11 | D18: ='erf Compare'!E18-'erf Compare'!B18 -> -4.735981607e-10 | E18: ='erf Compare'!F18-'erf Compare'!B18 -> -5.91978614e-07 | F18: ='erf Compare'!G18-'erf Compare'!B18 -> 2.307687375e-11 | G18: ='erf Compare'!H18-'erf Compare'!B18 -> -9.366302511e-09 | H18: ='erf Compare'!I18-'erf Compare'!B18 -> -1.758398982e-10
A19: ='erf Compare'!A19 -> 4.3 | B19: ='erf Compare'!C19-'erf Compare'!B19 -> 6.412892439e-11 | C19: ='erf Compare'!D19-'erf Compare'!B19 -> 6.412903542e-11 | D19: ='erf Compare'!E19-'erf Compare'!B19 -> -1.139903283e-09 | E19: ='erf Compare'!F19-'erf Compare'!B19 -> -8.180917869e-07 | F19: ='erf Compare'!G19-'erf Compare'!B19 -> 5.961142691e-11 | G19: ='erf Compare'!H19-'erf Compare'!B19 -> -1.900195812e-08 | H19: ='erf Compare'!I19-'erf Compare'!B19 -> -3.798914516e-10
A20: ='erf Compare'!A20 -> 4.2 | B20: ='erf Compare'!C20-'erf Compare'!B20 -> 1.607944888e-10 | C20: ='erf Compare'!D20-'erf Compare'!B20 -> 1.607947109e-10 | D20: ='erf Compare'!E20-'erf Compare'!B20 -> -2.691396217e-09 | E20: ='erf Compare'!F20-'erf Compare'!B20 -> -1.136019926e-06 | F20: ='erf Compare'!G20-'erf Compare'!B20 -> 1.509845582e-10 | G20: ='erf Compare'!H20-'erf Compare'!B20 -> -3.795079828e-08 | H20: ='erf Compare'!I20-'erf Compare'!B20 -> -7.992707607e-10
A21: ='erf Compare'!A21 -> 4.1 | B21: ='erf Compare'!C21-'erf Compare'!B21 -> 3.958264827e-10 | C21: ='erf Compare'!D21-'erf Compare'!B21 -> 3.958270378e-10 | D21: ='erf Compare'!E21-'erf Compare'!B21 -> -6.233885186e-09 | E21: ='erf Compare'!F21-'erf Compare'!B21 -> -1.584819826e-06 | F21: ='erf Compare'!G21-'erf Compare'!B21 -> 3.750281197e-10 | G21: ='erf Compare'!H21-'erf Compare'!B21 -> -7.459958762e-08 | H21: ='erf Compare'!I21-'erf Compare'!B21 -> -1.635097058e-09
A22: ='erf Compare'!A22 -> 4 | B22: ='erf Compare'!C22-'erf Compare'!B22 -> 9.56727142e-10 | C22: ='erf Compare'!D22-'erf Compare'!B22 -> 9.567282522e-10 | D22: ='erf Compare'!E22-'erf Compare'!B22 -> -1.416548046e-08 | E22: ='erf Compare'!F22-'erf Compare'!B22 -> -2.220511002e-06 | F22: ='erf Compare'!G22-'erf Compare'!B22 -> 9.136892354e-10 | G22: ='erf Compare'!H22-'erf Compare'!B22 -> -1.442898797e-07 | H22: ='erf Compare'!I22-'erf Compare'!B22 -> -3.245591129e-09
A23: ='erf Compare'!A23 -> 3.9 | B23: ='erf Compare'!C23-'erf Compare'!B23 -> 2.270684973e-09 | C23: ='erf Compare'!D23-'erf Compare'!B23 -> 2.270687083e-09 | D23: ='erf Compare'!E23-'erf Compare'!B23 -> -3.158018103e-08 | E23: ='erf Compare'!F23-'erf Compare'!B23 -> -3.123244355e-06 | F23: ='erf Compare'!G23-'erf Compare'!B23 -> 2.183793368e-09 | G23: ='erf Compare'!H23-'erf Compare'!B23 -> -2.745361958e-07 | H23: ='erf Compare'!I23-'erf Compare'!B23 -> -6.232576899e-09
A24: ='erf Compare'!A24 -> 3.8 | B24: ='erf Compare'!C24-'erf Compare'!B24 -> 5.292366656e-09 | C24: ='erf Compare'!D24-'erf Compare'!B24 -> 5.29237032e-09 | D24: ='erf Compare'!E24-'erf Compare'!B24 -> -6.907602768e-08 | E24: ='erf Compare'!F24-'erf Compare'!B24 -> -4.407128829e-06 | F24: ='erf Compare'!G24-'erf Compare'!B24 -> 5.121271407e-09 | G24: ='erf Compare'!H24-'erf Compare'!B24 -> -5.136840046e-07 | H24: ='erf Compare'!I24-'erf Compare'!B24 -> -1.15294122e-08
A25: ='erf Compare'!A25 -> 3.7 | B25: ='erf Compare'!C25-'erf Compare'!B25 -> 1.211459688e-08 | C25: ='erf Compare'!D25-'erf Compare'!B25 -> 1.211460265e-08 | D25: ='erf Compare'!E25-'erf Compare'!B25 -> -1.482473128e-07 | E25: ='erf Compare'!F25-'erf Compare'!B25 -> -6.233313331e-06 | F25: ='erf Compare'!G25-'erf Compare'!B25 -> 1.178617193e-08 | G25: ='erf Compare'!H25-'erf Compare'!B25 -> -9.448868007e-07 | H25: ='erf Compare'!I25-'erf Compare'!B25 -> -2.04109647e-08
A26: ='erf Compare'!A26 -> 3.6 | B26: ='erf Compare'!C26-'erf Compare'!B26 -> 2.723824477e-08 | C26: ='erf Compare'!D26-'erf Compare'!B26 -> 2.72382521e-08 | D26: ='erf Compare'!E26-'erf Compare'!B26 -> -3.121823511e-07 | E26: ='erf Compare'!F26-'erf Compare'!B26 -> -8.826681457e-06 | F26: ='erf Compare'!G26-'erf Compare'!B26 -> 2.66239838e-08 | G26: ='erf Compare'!H26-'erf Compare'!B26 -> -1.708005327e-06 | H26: ='erf Compare'!I26-'erf Compare'!B26 -> -3.420970718e-08
A27: ='erf Compare'!A27 -> 3.5 | B27: ='erf Compare'!C27-'erf Compare'!B27 -> 6.01601956e-08 | C27: ='erf Compare'!D27-'erf Compare'!B27 -> 6.016020038e-08 | D27: ='erf Compare'!E27-'erf Compare'!B27 -> -6.4506636e-07 | E27: ='erf Compare'!F27-'erf Compare'!B27 -> -1.24958315e-05 | F27: ='erf Compare'!G27-'erf Compare'!B27 -> 5.904143197e-08 | G27: ='erf Compare'!H27-'erf Compare'!B27 -> -3.032795849e-06 | H27: ='erf Compare'!I27-'erf Compare'!B27 -> -5.322782692e-08
A28: ='erf Compare'!A28 -> 3.4 | B28: ='erf Compare'!C28-'erf Compare'!B28 -> 1.305426321e-07 | C28: ='erf Compare'!D28-'erf Compare'!B28 -> 1.30542619e-07 | D28: ='erf Compare'!E28-'erf Compare'!B28 -> -1.307927372e-06 | E28: ='erf Compare'!F28-'erf Compare'!B28 -> -1.765453001e-05 | F28: ='erf Compare'!G28-'erf Compare'!B28 -> 1.285597088e-07 | G28: ='erf Compare'!H28-'erf Compare'!B28 -> -5.287328571e-06 | H28: ='erf Compare'!I28-'erf Compare'!B28 -> -7.374078703e-08
A29: ='erf Compare'!A29 -> 3.3 | B29: ='erf Compare'!C29-'erf Compare'!B29 -> -2.087219286e-13 | C29: ='erf Compare'!D29-'erf Compare'!B29 -> -2.808864252e-13 | D29: ='erf Compare'!E29-'erf Compare'!B29 -> -2.880587829e-06 | E29: ='erf Compare'!F29-'erf Compare'!B29 -> -2.511835044e-05 | F29: ='erf Compare'!G29-'erf Compare'!B29 -> -3.417838346e-09 | G29: ='erf Compare'!H29-'erf Compare'!B29 -> -9.323836342e-06 | H29: ='erf Compare'!I29-'erf Compare'!B29 -> -3.591805406e-07
A30: ='erf Compare'!A30 -> 3.2 | B30: ='erf Compare'!C30-'erf Compare'!B30 -> 8.09352585e-14 | C30: ='erf Compare'!D30-'erf Compare'!B30 -> -1.494360191e-13 | D30: ='erf Compare'!E30-'erf Compare'!B30 -> -5.663611652e-06 | E30: ='erf Compare'!F30-'erf Compare'!B30 -> -3.530186169e-05 | F30: ='erf Compare'!G30-'erf Compare'!B30 -> -5.722750607e-09 | G30: ='erf Compare'!H30-'erf Compare'!B30 -> -1.575918001e-05 | H30: ='erf Compare'!I30-'erf Compare'!B30 -> -6.160089814e-07
A31: ='erf Compare'!A31 -> 3.1 | B31: ='erf Compare'!C31-'erf Compare'!B31 -> -2.153832668e-14 | C31: ='erf Compare'!D31-'erf Compare'!B31 -> -6.272760089e-13 | D31: ='erf Compare'!E31-'erf Compare'!B31 -> -1.09334858e-05 | E31: ='erf Compare'!F31-'erf Compare'!B31 -> -4.92627317e-05 | F31: ='erf Compare'!G31-'erf Compare'!B31 -> -9.300652692e-09 | G31: ='erf Compare'!H31-'erf Compare'!B31 -> -2.615166948e-05 | H31: ='erf Compare'!I31-'erf Compare'!B31 -> -1.029930045e-06
A32: ='erf Compare'!A32 -> 3 | B32: ='erf Compare'!C32-'erf Compare'!B32 -> -1.776356839e-14 | C32: ='erf Compare'!D32-'erf Compare'!B32 -> -1.440625397e-12 | D32: ='erf Compare'!E32-'erf Compare'!B32 -> -2.072492911e-05 | E32: ='erf Compare'!F32-'erf Compare'!B32 -> -6.809308569e-05 | F32: ='erf Compare'!G32-'erf Compare'!B32 -> -1.46519169e-08 | G32: ='erf Compare'!H32-'erf Compare'!B32 -> -4.259283133e-05 | H32: ='erf Compare'!I32-'erf Compare'!B32 -> -1.677599706e-06
A33: ='erf Compare'!A33 -> 2.9 | B33: ='erf Compare'!C33-'erf Compare'!B33 -> -9.436895709e-15 | C33: ='erf Compare'!D33-'erf Compare'!B33 -> -3.085975919e-12 | D33: ='erf Compare'!E33-'erf Compare'!B33 -> -3.857516851e-05 | E33: ='erf Compare'!F33-'erf Compare'!B33 -> -9.298314914e-05 | F33: ='erf Compare'!G33-'erf Compare'!B33 -> -2.234151308e-08 | G33: ='erf Compare'!H33-'erf Compare'!B33 -> -6.805791878e-05 | H33: ='erf Compare'!I33-'erf Compare'!B33 -> -2.660099159e-06
A34: ='erf Compare'!A34 -> 2.8 | B34: ='erf Compare'!C34-'erf Compare'!B34 -> 4.329869796e-15 | C34: ='erf Compare'!D34-'erf Compare'!B34 -> -6.201594793e-12 | D34: ='erf Compare'!E34-'erf Compare'!B34 -> -7.05029964e-05 | E34: ='erf Compare'!F34-'erf Compare'!B34 -> -0.0001250745038 | F34: ='erf Compare'!G34-'erf Compare'!B34 -> -3.291427542e-08 | G34: ='erf Compare'!H34-'erf Compare'!B34 -> -0.0001066466307 | H34: ='erf Compare'!I34-'erf Compare'!B34 -> -4.102508618e-06
A35: ='erf Compare'!A35 -> 2.7 | B35: ='erf Compare'!C35-'erf Compare'!B35 -> 1.032507413e-14 | C35: ='erf Compare'!D35-'erf Compare'!B35 -> -1.173294795e-11 | D35: ='erf Compare'!E35-'erf Compare'!B35 -> -0.0001265286782 | E35: ='erf Compare'!F35-'erf Compare'!B35 -> -0.000165201618 | F35: ='erf Compare'!G35-'erf Compare'!B35 -> -4.674534504e-08 | G35: ='erf Compare'!H35-'erf Compare'!B35 -> -0.0001638130095 | H35: ='erf Compare'!I35-'erf Compare'!B35 -> -6.147340952e-06
A36: ='erf Compare'!A36 -> 2.6 | B36: ='erf Compare'!C36-'erf Compare'!B36 -> 0 | C36: ='erf Compare'!D36-'erf Compare'!B36 -> -2.085387418e-11 | D36: ='erf Compare'!E36-'erf Compare'!B36 -> -0.0002229663207 | E36: ='erf Compare'!F36-'erf Compare'!B36 -> -0.0002134958344 | F36: ='erf Compare'!G36-'erf Compare'!B36 -> -6.381825124e-08 | G36: ='erf Compare'!H36-'erf Compare'!B36 -> -0.000246530777 | H36: ='erf Compare'!I36-'erf Compare'!B36 -> -8.938550529e-06
A37: ='erf Compare'!A37 -> 2.5 | B37: ='erf Compare'!C37-'erf Compare'!B37 -> -1.554312234e-15 | C37: ='erf Compare'!D37-'erf Compare'!B37 -> -3.460398634e-11 | D37: ='erf Compare'!E37-'erf Compare'!B37 -> -0.0003857754325 | E37: ='erf Compare'!F37-'erf Compare'!B37 -> -0.0002688482103 | F37: ='erf Compare'!G37-'erf Compare'!B37 -> -8.34459507e-08 | G37: ='erf Compare'!H37-'erf Compare'!B37 -> -0.0003633144782 | H37: ='erf Compare'!I37-'erf Compare'!B37 -> -1.259305139e-05
A38: ='erf Compare'!A38 -> 2.4 | B38: ='erf Compare'!C38-'erf Compare'!B38 -> -2.553512957e-15 | C38: ='erf Compare'!D38-'erf Compare'!B38 -> -5.309375162e-11 | D38: ='erf Compare'!E38-'erf Compare'!B38 -> -0.0006552966299 | E38: ='erf Compare'!F38-'erf Compare'!B38 -> -0.0003282738128 | F38: ='erf Compare'!G38-'erf Compare'!B38 -> -1.039853523e-07 | G38: ='erf Compare'!H38-'erf Compare'!B38 -> -0.0005239914534 | H38: ='erf Compare'!I38-'erf Compare'!B38 -> -1.71581609e-05
A39: ='erf Compare'!A39 -> 2.3 | B39: ='erf Compare'!C39-'erf Compare'!B39 -> 0 | C39: ='erf Compare'!D39-'erf Compare'!B39 -> -7.369072019e-11 | D39: ='erf Compare'!E39-'erf Compare'!B39 -> -0.001092690839 | E39: ='erf Compare'!F39-'erf Compare'!B39 -> -0.0003862953311 | F39: ='erf Compare'!G39-'erf Compare'!B39 -> -1.22640327e-07 | G39: ='erf Compare'!H39-'erf Compare'!B39 -> -0.0007391022482 | H39: ='erf Compare'!I39-'erf Compare'!B39 -> -2.255664769e-05
A40: ='erf Compare'!A40 -> 2.2 | B40: ='erf Compare'!C40-'erf Compare'!B40 -> 0 | C40: ='erf Compare'!D40-'erf Compare'!B40 -> -8.80150397e-11 | D40: ='erf Compare'!E40-'erf Compare'!B40 -> -0.001788311397 | E40: ='erf Compare'!F40-'erf Compare'!B40 -> -0.0004345643118 | F40: ='erf Compare'!G40-'erf Compare'!B40 -> -1.354908296e-07 | G40: ='erf Compare'!H40-'erf Compare'!B40 -> -0.001018808148 | H40: ='erf Compare'!I40-'erf Compare'!B40 -> -2.8526332e-05
A41: ='erf Compare'!A41 -> 2.1 | B41: ='erf Compare'!C41-'erf Compare'!B41 -> 0 | C41: ='erf Compare'!D41-'erf Compare'!B41 -> -7.751077558e-11 | D41: ='erf Compare'!E41-'erf Compare'!B41 -> -0.002872009648 | E41: ='erf Compare'!F41-'erf Compare'!B41 -> -0.0004620425105 | F41: ='erf Compare'!G41-'erf Compare'!B41 -> -1.379029096e-07 | G41: ='erf Compare'!H41-'erf Compare'!B41 -> -0.001371216765 | H41: ='erf Compare'!I41-'erf Compare'!B41 -> -3.456804096e-05
A42: ='erf Compare'!A42 -> 2 | B42: ='erf Compare'!C42-'erf Compare'!B42 -> -9.992007222e-16 | C42: ='erf Compare'!D42-'erf Compare'!B42 -> -8.287703857e-12 | D42: ='erf Compare'!E42-'erf Compare'!B42 -> -0.004524942396 | E42: ='erf Compare'!F42-'erf Compare'!B42 -> -0.0004561264064 | F42: ='erf Compare'!G42-'erf Compare'!B42 -> -1.254377349e-07 | G42: ='erf Compare'!H42-'erf Compare'!B42 -> -0.001800112324 | H42: ='erf Compare'!I42-'erf Compare'!B42 -> -3.992274265e-05
A43: ='erf Compare'!A43 -> 1.9 | B43: ='erf Compare'!C43-'erf Compare'!B43 -> 0 | C43: ='erf Compare'!D43-'erf Compare'!B43 -> 1.726506715e-10 | D43: ='erf Compare'!E43-'erf Compare'!B43 -> -0.006991750696 | E43: ='erf Compare'!F43-'erf Compare'!B43 -> -0.000405039576 | F43: ='erf Compare'!G43-'erf Compare'!B43 -> -9.525861722e-08 | G43: ='erf Compare'!H43-'erf Compare'!B43 -> -0.00230220432 | H43: ='erf Compare'!I43-'erf Compare'!B43 -> -4.360325746e-05
A44: ='erf Compare'!A44 -> 1.8 | B44: ='erf Compare'!C44-'erf Compare'!B44 -> 0 | C44: ='erf Compare'!D44-'erf Compare'!B44 -> 5.352484012e-10 | D44: ='erf Compare'!E44-'erf Compare'!B44 -> -0.01059097425 | E44: ='erf Compare'!F44-'erf Compare'!B44 -> -0.0003015521341 | F44: ='erf Compare'!G44-'erf Compare'!B44 -> -4.782420404e-08 | G44: ='erf Compare'!H44-'erf Compare'!B44 -> -0.002864184529 | H44: ='erf Compare'!I44-'erf Compare'!B44 -> -4.4504478e-05
A45: ='erf Compare'!A45 -> 1.7 | B45: ='erf Compare'!C45-'erf Compare'!B45 -> 0 | C45: ='erf Compare'!D45-'erf Compare'!B45 -> 1.150859741e-09 | D45: ='erf Compare'!E45-'erf Compare'!B45 -> -0.01572027288 | E45: ='erf Compare'!F45-'erf Compare'!B45 -> -0.0001475551364 | F45: ='erf Compare'!G45-'erf Compare'!B45 -> 1.161683116e-08 | G45: ='erf Compare'!H45-'erf Compare'!B45 -> -0.00346009037 | H45: ='erf Compare'!I45-'erf Compare'!B45 -> -4.16047729e-05
A46: ='erf Compare'!A46 -> 1.6 | B46: ='erf Compare'!C46-'erf Compare'!B46 -> 0 | C46: ='erf Compare'!D46-'erf Compare'!B46 -> 2.054079351e-09 | D46: ='erf Compare'!E46-'erf Compare'!B46 -> -0.02285156959 | E46: ='erf Compare'!F46-'erf Compare'!B46 -> 4.173629088e-05 | F46: ='erf Compare'!G46-'erf Compare'!B46 -> 7.246164557e-08 | G46: ='erf Compare'!H46-'erf Compare'!B46 -> -0.004049675115 | H46: ='erf Compare'!I46-'erf Compare'!B46 -> -3.424785779e-05
A47: ='erf Compare'!A47 -> 1.5 | B47: ='erf Compare'!C47-'erf Compare'!B47 -> 0 | C47: ='erf Compare'!D47-'erf Compare'!B47 -> 3.175164021e-09 | D47: ='erf Compare'!E47-'erf Compare'!B47 -> -0.03250988703 | E47: ='erf Compare'!F47-'erf Compare'!B47 -> 0.0002359300857 | F47: ='erf Compare'!G47-'erf Compare'!B47 -> 1.199276608e-07 | G47: ='erf Compare'!H47-'erf Compare'!B47 -> -0.0045786251 | H47: ='erf Compare'!I47-'erf Compare'!B47 -> -2.246002266e-05
A48: ='erf Compare'!A48 -> 1.4 | B48: ='erf Compare'!C48-'erf Compare'!B48 -> 0 | C48: ='erf Compare'!D48-'erf Compare'!B48 -> 4.248529972e-09 | D48: ='erf Compare'!E48-'erf Compare'!B48 -> -0.04522889168 | E48: ='erf Compare'!F48-'erf Compare'!B48 -> 0.0003922504881 | F48: ='erf Compare'!G48-'erf Compare'!B48 -> 1.385058663e-07 | G48: ='erf Compare'!H48-'erf Compare'!B48 -> -0.004981469288 | H48: ='erf Compare'!I48-'erf Compare'!B48 -> -7.218834443e-06
A49: ='erf Compare'!A49 -> 1.3 | B49: ='erf Compare'!C49-'erf Compare'!B49 -> 0 | C49: ='erf Compare'!D49-'erf Compare'!B49 -> 4.730608349e-09 | D49: ='erf Compare'!E49-'erf Compare'!B49 -> -0.06147664435 | E49: ='erf Compare'!F49-'erf Compare'!B49 -> 0.0004646113687 | F49: ='erf Compare'!G49-'erf Compare'!B49 -> 1.174978992e-07 | G49: ='erf Compare'!H49-'erf Compare'!B49 -> -0.005187824487 | H49: ='erf Compare'!I49-'erf Compare'!B49 -> 9.440675656e-06
A50: ='erf Compare'!A50 -> 1.2 | B50: ='erf Compare'!C50-'erf Compare'!B50 -> 0 | C50: ='erf Compare'!D50-'erf Compare'!B50 -> 3.805802007e-09 | D50: ='erf Compare'!E50-'erf Compare'!B50 -> -0.08154754281 | E50: ='erf Compare'!F50-'erf Compare'!B50 -> 0.000418595145 | F50: ='erf Compare'!G50-'erf Compare'!B50 -> 5.727657681e-08 | G50: ='erf Compare'!H50-'erf Compare'!B50 -> -0.005132156808 | H50: ='erf Compare'!I50-'erf Compare'!B50 -> 2.4599715e-05
A51: ='erf Compare'!A51 -> 1.1 | B51: ='erf Compare'!C51-'erf Compare'!B51 -> 0 | C51: ='erf Compare'!D51-'erf Compare'!B51 -> 6.096803062e-10 | D51: ='erf Compare'!E51-'erf Compare'!B51 -> -0.1054215988 | E51: ='erf Compare'!F51-'erf Compare'!B51 -> 0.000248811359 | F51: ='erf Compare'!G51-'erf Compare'!B51 -> -2.637048635e-08 | G51: ='erf Compare'!H51-'erf Compare'!B51 -> -0.004766506658 | H51: ='erf Compare'!I51-'erf Compare'!B51 -> 3.498496758e-05
A52: ='erf Compare'!A52 -> 1 | B52: ='erf Compare'!C52-'erf Compare'!B52 -> 0 | C52: ='erf Compare'!D52-'erf Compare'!B52 -> -5.189708441e-09 | D52: ='erf Compare'!E52-'erf Compare'!B52 -> -0.132600269 | E52: ='erf Compare'!F52-'erf Compare'!B52 -> -8.129557526e-06 | F52: ='erf Compare'!G52-'erf Compare'!B52 -> -1.032021252e-07 | G52: ='erf Compare'!H52-'erf Compare'!B52 -> -0.00407467766 | H52: ='erf Compare'!I52-'erf Compare'!B52 -> 3.78315434e-05
A53: ='erf Compare'!A53 -> 0.9 | B53: ='erf Compare'!C53-'erf Compare'!B53 -> 0 | C53: ='erf Compare'!D53-'erf Compare'!B53 -> -1.243023928e-08 | D53: ='erf Compare'!E53-'erf Compare'!B53 -> -0.1619384938 | E53: ='erf Compare'!F53-'erf Compare'!B53 -> -0.0002733498257 | F53: ='erf Compare'!G53-'erf Compare'!B53 -> -1.375091646e-07 | G53: ='erf Compare'!H53-'erf Compare'!B53 -> -0.003085365933 | H53: ='erf Compare'!I53-'erf Compare'!B53 -> 3.19118334e-05
A54: ='erf Compare'!A54 -> 0.8 | B54: ='erf Compare'!C54-'erf Compare'!B54 -> 0 | C54: ='erf Compare'!D54-'erf Compare'!B54 -> -1.747385692e-08 | D54: ='erf Compare'!E54-'erf Compare'!B54 -> -0.1915036504 | E54: ='erf Compare'!F54-'erf Compare'!B54 -> -0.0004445643285 | F54: ='erf Compare'!G54-'erf Compare'!B54 -> -1.049654689e-07 | G54: ='erf Compare'!H54-'erf Compare'!B54 -> -0.001880817938 | H54: ='erf Compare'!I54-'erf Compare'!B54 -> 1.8401875e-05
A55: ='erf Compare'!A55 -> 0.7 | B55: ='erf Compare'!C55-'erf Compare'!B55 -> 0 | C55: ='erf Compare'!D55-'erf Compare'!B55 -> -1.429351515e-08 | D55: ='erf Compare'!E55-'erf Compare'!B55 -> -0.218500781 | E55: ='erf Compare'!F55-'erf Compare'!B55 -> -0.0004343308091 | F55: ='erf Compare'!G55-'erf Compare'!B55 -> -1.198131594e-08 | G55: ='erf Compare'!H55-'erf Compare'!B55 -> -0.000597113801 | H55: ='erf Compare'!I55-'erf Compare'!B55 -> 1.145146705e-06
A56: ='erf Compare'!A56 -> 0.6 | B56: ='erf Compare'!C56-'erf Compare'!B56 -> 0 | C56: ='erf Compare'!D56-'erf Compare'!B56 -> 2.467380411e-09 | D56: ='erf Compare'!E56-'erf Compare'!B56 -> -0.2393058005 | E56: ='erf Compare'!F56-'erf Compare'!B56 -> -0.0002184606509 | F56: ='erf Compare'!G56-'erf Compare'!B56 -> 9.40015108e-08 | G56: ='erf Compare'!H56-'erf Compare'!B56 -> 0.0005876615294 | H56: ='erf Compare'!I56-'erf Compare'!B56 -> -1.410375645e-05
A57: ='erf Compare'!A57 -> 0.5 | B57: ='erf Compare'!C57-'erf Compare'!B57 -> 0 | C57: ='erf Compare'!D57-'erf Compare'!B57 -> 2.991019576e-08 | D57: ='erf Compare'!E57-'erf Compare'!B57 -> -0.249640634 | E57: ='erf Compare'!F57-'erf Compare'!B57 -> 0.0001249495042 | F57: ='erf Compare'!G57-'erf Compare'!B57 -> 1.384917e-07 | G57: ='erf Compare'!H57-'erf Compare'!B57 -> 0.001480084263 | H57: ='erf Compare'!I57-'erf Compare'!B57 -> -2.163064429e-05
A58: ='erf Compare'!A58 -> 0.4 | B58: ='erf Compare'!C58-'erf Compare'!B58 -> 0 | C58: ='erf Compare'!D58-'erf Compare'!B58 -> 4.785228919e-08 | D58: ='erf Compare'!E58-'erf Compare'!B58 -> -0.2449043296 | E58: ='erf Compare'!F58-'erf Compare'!B58 -> 0.0004133074873 | F58: ='erf Compare'!G58-'erf Compare'!B58 -> 6.84206159e-08 | G58: ='erf Compare'!H58-'erf Compare'!B58 -> 0.001913707764 | H58: ='erf Compare'!I58-'erf Compare'!B58 -> -1.856870619e-05
A59: ='erf Compare'!A59 -> 0.3 | B59: ='erf Compare'!C59-'erf Compare'!B59 -> 0 | C59: ='erf Compare'!D59-'erf Compare'!B59 -> 2.464445842e-08 | D59: ='erf Compare'!E59-'erf Compare'!B59 -> -0.2206434271 | E59: ='erf Compare'!F59-'erf Compare'!B59 -> 0.0004242435731 | F59: ='erf Compare'!G59-'erf Compare'!B59 -> -7.673011554e-08 | G59: ='erf Compare'!H59-'erf Compare'!B59 -> 0.001805170308 | H59: ='erf Compare'!I59-'erf Compare'!B59 -> -7.453840442e-06
A60: ='erf Compare'!A60 -> 0.2 | B60: ='erf Compare'!C60-'erf Compare'!B60 -> 0 | C60: ='erf Compare'!D60-'erf Compare'!B60 -> -2.988143516e-08 | D60: ='erf Compare'!E60-'erf Compare'!B60 -> -0.1731088988 | E60: ='erf Compare'!F60-'erf Compare'!B60 -> 5.287580238e-05 | F60: ='erf Compare'!G60-'erf Compare'!B60 -> -1.313521627e-07 | G60: ='erf Compare'!H60-'erf Compare'!B60 -> 0.001219156228 | H60: ='erf Compare'!I60-'erf Compare'!B60 -> 3.475140256e-06
A61: ='erf Compare'!A61 -> 0.1 | B61: ='erf Compare'!C61-'erf Compare'!B61 -> 0 | C61: ='erf Compare'!D61-'erf Compare'!B61 -> 1.275228988e-08 | D61: ='erf Compare'!E61-'erf Compare'!B61 -> -0.09981519458 | E61: ='erf Compare'!F61-'erf Compare'!B61 -> -0.000425785011 | F61: ='erf Compare'!G61-'erf Compare'!B61 -> 4.960391087e-08 | G61: ='erf Compare'!H61-'erf Compare'!B61 -> 0.0004343117838 | H61: ='erf Compare'!I61-'erf Compare'!B61 -> 5.024695774e-06
A62: ='erf Compare'!A62 -> 4.579669977e-15 | B62: ='erf Compare'!C62-'erf Compare'!B62 -> 0 | C62: ='erf Compare'!D62-'erf Compare'!B62 -> -3.000000054e-08 | D62: ='erf Compare'!E62-'erf Compare'!B62 -> -5.167604194e-15 | E62: ='erf Compare'!F62-'erf Compare'!B62 -> 1.614663245e-16 | F62: ='erf Compare'!G62-'erf Compare'!B62 -> 1.000000213e-09 | G62: ='erf Compare'!H62-'erf Compare'!B62 -> 5.044402199e-17 | H62: ='erf Compare'!I62-'erf Compare'!B62 -> -2.662919994e-17
A63: ='erf Compare'!A63 -> -0.1 | B63: ='erf Compare'!C63-'erf Compare'!B63 -> 0 | C63: ='erf Compare'!D63-'erf Compare'!B63 -> -1.275229e-08 | D63: ='erf Compare'!E63-'erf Compare'!B63 -> 0.09981519458 | E63: ='erf Compare'!F63-'erf Compare'!B63 -> 0.000425785011 | F63: ='erf Compare'!G63-'erf Compare'!B63 -> -4.960391081e-08 | G63: ='erf Compare'!H63-'erf Compare'!B63 -> -0.0004343117837 | H63: ='erf Compare'!I63-'erf Compare'!B63 -> -5.024695774e-06
A64: ='erf Compare'!A64 -> -0.2 | B64: ='erf Compare'!C64-'erf Compare'!B64 -> 0 | C64: ='erf Compare'!D64-'erf Compare'!B64 -> 2.98814351e-08 | D64: ='erf Compare'!E64-'erf Compare'!B64 -> 0.1731088988 | E64: ='erf Compare'!F64-'erf Compare'!B64 -> -5.287580238e-05 | F64: ='erf Compare'!G64-'erf Compare'!B64 -> 1.313521628e-07 | G64: ='erf Compare'!H64-'erf Compare'!B64 -> -0.001219156228 | H64: ='erf Compare'!I64-'erf Compare'!B64 -> -3.475140256e-06
A65: ='erf Compare'!A65 -> -0.3 | B65: ='erf Compare'!C65-'erf Compare'!B65 -> 0 | C65: ='erf Compare'!D65-'erf Compare'!B65 -> -2.464445847e-08 | D65: ='erf Compare'!E65-'erf Compare'!B65 -> 0.2206434271 | E65: ='erf Compare'!F65-'erf Compare'!B65 -> -0.0004242435731 | F65: ='erf Compare'!G65-'erf Compare'!B65 -> 7.673011598e-08 | G65: ='erf Compare'!H65-'erf Compare'!B65 -> -0.001805170308 | H65: ='erf Compare'!I65-'erf Compare'!B65 -> 7.453840442e-06
A66: ='erf Compare'!A66 -> -0.4 | B66: ='erf Compare'!C66-'erf Compare'!B66 -> 0 | C66: ='erf Compare'!D66-'erf Compare'!B66 -> -4.785228913e-08 | D66: ='erf Compare'!E66-'erf Compare'!B66 -> 0.2449043296 | E66: ='erf Compare'!F66-'erf Compare'!B66 -> -0.0004133074873 | F66: ='erf Compare'!G66-'erf Compare'!B66 -> -6.842061578e-08 | G66: ='erf Compare'!H66-'erf Compare'!B66 -> -0.001913707764 | H66: ='erf Compare'!I66-'erf Compare'!B66 -> 1.856870619e-05
A67: ='erf Compare'!A67 -> -0.5 | B67: ='erf Compare'!C67-'erf Compare'!B67 -> 0 | C67: ='erf Compare'!D67-'erf Compare'!B67 -> -2.991019576e-08 | D67: ='erf Compare'!E67-'erf Compare'!B67 -> 0.249640634 | E67: ='erf Compare'!F67-'erf Compare'!B67 -> -0.0001249495042 | F67: ='erf Compare'!G67-'erf Compare'!B67 -> -1.384917001e-07 | G67: ='erf Compare'!H67-'erf Compare'!B67 -> -0.001480084263 | H67: ='erf Compare'!I67-'erf Compare'!B67 -> 2.163064429e-05
A68: ='erf Compare'!A68 -> -0.6 | B68: ='erf Compare'!C68-'erf Compare'!B68 -> 0 | C68: ='erf Compare'!D68-'erf Compare'!B68 -> -2.467380522e-09 | D68: ='erf Compare'!E68-'erf Compare'!B68 -> 0.2393058005 | E68: ='erf Compare'!F68-'erf Compare'!B68 -> 0.0002184606509 | F68: ='erf Compare'!G68-'erf Compare'!B68 -> -9.400151091e-08 | G68: ='erf Compare'!H68-'erf Compare'!B68 -> -0.0005876615294 | H68: ='erf Compare'!I68-'erf Compare'!B68 -> 1.410375645e-05
A69: ='erf Compare'!A69 -> -0.7 | B69: ='erf Compare'!C69-'erf Compare'!B69 -> 0 | C69: ='erf Compare'!D69-'erf Compare'!B69 -> 1.429351515e-08 | D69: ='erf Compare'!E69-'erf Compare'!B69 -> 0.218500781 | E69: ='erf Compare'!F69-'erf Compare'!B69 -> 0.0004343308091 | F69: ='erf Compare'!G69-'erf Compare'!B69 -> 1.198131583e-08 | G69: ='erf Compare'!H69-'erf Compare'!B69 -> 0.000597113801 | H69: ='erf Compare'!I69-'erf Compare'!B69 -> -1.145146705e-06
A70: ='erf Compare'!A70 -> -0.8 | B70: ='erf Compare'!C70-'erf Compare'!B70 -> 0 | C70: ='erf Compare'!D70-'erf Compare'!B70 -> 1.747385669e-08 | D70: ='erf Compare'!E70-'erf Compare'!B70 -> 0.1915036504 | E70: ='erf Compare'!F70-'erf Compare'!B70 -> 0.0004445643285 | F70: ='erf Compare'!G70-'erf Compare'!B70 -> 1.049654688e-07 | G70: ='erf Compare'!H70-'erf Compare'!B70 -> 0.001880817938 | H70: ='erf Compare'!I70-'erf Compare'!B70 -> -1.8401875e-05
A71: ='erf Compare'!A71 -> -0.9 | B71: ='erf Compare'!C71-'erf Compare'!B71 -> 0 | C71: ='erf Compare'!D71-'erf Compare'!B71 -> 1.24302395e-08 | D71: ='erf Compare'!E71-'erf Compare'!B71 -> 0.1619384938 | E71: ='erf Compare'!F71-'erf Compare'!B71 -> 0.0002733498257 | F71: ='erf Compare'!G71-'erf Compare'!B71 -> 1.375091648e-07 | G71: ='erf Compare'!H71-'erf Compare'!B71 -> 0.003085365933 | H71: ='erf Compare'!I71-'erf Compare'!B71 -> -3.19118334e-05
A72: ='erf Compare'!A72 -> -1 | B72: ='erf Compare'!C72-'erf Compare'!B72 -> 0 | C72: ='erf Compare'!D72-'erf Compare'!B72 -> 5.189708441e-09 | D72: ='erf Compare'!E72-'erf Compare'!B72 -> 0.132600269 | E72: ='erf Compare'!F72-'erf Compare'!B72 -> 8.129557526e-06 | F72: ='erf Compare'!G72-'erf Compare'!B72 -> 1.032021252e-07 | G72: ='erf Compare'!H72-'erf Compare'!B72 -> 0.00407467766 | H72: ='erf Compare'!I72-'erf Compare'!B72 -> -3.78315434e-05
A73: ='erf Compare'!A73 -> -1.1 | B73: ='erf Compare'!C73-'erf Compare'!B73 -> 0 | C73: ='erf Compare'!D73-'erf Compare'!B73 -> -6.096801952e-10 | D73: ='erf Compare'!E73-'erf Compare'!B73 -> 0.1054215988 | E73: ='erf Compare'!F73-'erf Compare'!B73 -> -0.000248811359 | F73: ='erf Compare'!G73-'erf Compare'!B73 -> 2.637048646e-08 | G73: ='erf Compare'!H73-'erf Compare'!B73 -> 0.004766506658 | H73: ='erf Compare'!I73-'erf Compare'!B73 -> -3.498496758e-05
A74: ='erf Compare'!A74 -> -1.2 | B74: ='erf Compare'!C74-'erf Compare'!B74 -> 0 | C74: ='erf Compare'!D74-'erf Compare'!B74 -> -3.805801896e-09 | D74: ='erf Compare'!E74-'erf Compare'!B74 -> 0.08154754281 | E74: ='erf Compare'!F74-'erf Compare'!B74 -> -0.000418595145 | F74: ='erf Compare'!G74-'erf Compare'!B74 -> -5.72765767e-08 | G74: ='erf Compare'!H74-'erf Compare'!B74 -> 0.005132156808 | H74: ='erf Compare'!I74-'erf Compare'!B74 -> -2.4599715e-05
A75: ='erf Compare'!A75 -> -1.3 | B75: ='erf Compare'!C75-'erf Compare'!B75 -> 0 | C75: ='erf Compare'!D75-'erf Compare'!B75 -> -4.730608127e-09 | D75: ='erf Compare'!E75-'erf Compare'!B75 -> 0.06147664435 | E75: ='erf Compare'!F75-'erf Compare'!B75 -> -0.0004646113687 | F75: ='erf Compare'!G75-'erf Compare'!B75 -> -1.17497899e-07 | G75: ='erf Compare'!H75-'erf Compare'!B75 -> 0.005187824487 | H75: ='erf Compare'!I75-'erf Compare'!B75 -> -9.440675655e-06
A76: ='erf Compare'!A76 -> -1.4 | B76: ='erf Compare'!C76-'erf Compare'!B76 -> 0 | C76: ='erf Compare'!D76-'erf Compare'!B76 -> -4.248529861e-09 | D76: ='erf Compare'!E76-'erf Compare'!B76 -> 0.04522889168 | E76: ='erf Compare'!F76-'erf Compare'!B76 -> -0.0003922504881 | F76: ='erf Compare'!G76-'erf Compare'!B76 -> -1.385058662e-07 | G76: ='erf Compare'!H76-'erf Compare'!B76 -> 0.004981469288 | H76: ='erf Compare'!I76-'erf Compare'!B76 -> 7.218834443e-06
A77: ='erf Compare'!A77 -> -1.5 | B77: ='erf Compare'!C77-'erf Compare'!B77 -> 0 | C77: ='erf Compare'!D77-'erf Compare'!B77 -> -3.175164132e-09 | D77: ='erf Compare'!E77-'erf Compare'!B77 -> 0.03250988703 | E77: ='erf Compare'!F77-'erf Compare'!B77 -> -0.0002359300857 | F77: ='erf Compare'!G77-'erf Compare'!B77 -> -1.199276609e-07 | G77: ='erf Compare'!H77-'erf Compare'!B77 -> 0.0045786251 | H77: ='erf Compare'!I77-'erf Compare'!B77 -> 2.246002266e-05
A78: ='erf Compare'!A78 -> -1.6 | B78: ='erf Compare'!C78-'erf Compare'!B78 -> 0 | C78: ='erf Compare'!D78-'erf Compare'!B78 -> -2.054079129e-09 | D78: ='erf Compare'!E78-'erf Compare'!B78 -> 0.02285156959 | E78: ='erf Compare'!F78-'erf Compare'!B78 -> -4.173629088e-05 | F78: ='erf Compare'!G78-'erf Compare'!B78 -> -7.246164535e-08 | G78: ='erf Compare'!H78-'erf Compare'!B78 -> 0.004049675115 | H78: ='erf Compare'!I78-'erf Compare'!B78 -> 3.424785779e-05
A79: ='erf Compare'!A79 -> -1.7 | B79: ='erf Compare'!C79-'erf Compare'!B79 -> 0 | C79: ='erf Compare'!D79-'erf Compare'!B79 -> -1.15085963e-09 | D79: ='erf Compare'!E79-'erf Compare'!B79 -> 0.01572027288 | E79: ='erf Compare'!F79-'erf Compare'!B79 -> 0.0001475551364 | F79: ='erf Compare'!G79-'erf Compare'!B79 -> -1.161683105e-08 | G79: ='erf Compare'!H79-'erf Compare'!B79 -> 0.00346009037 | H79: ='erf Compare'!I79-'erf Compare'!B79 -> 4.16047729e-05
A80: ='erf Compare'!A80 -> -1.8 | B80: ='erf Compare'!C80-'erf Compare'!B80 -> 0 | C80: ='erf Compare'!D80-'erf Compare'!B80 -> -5.35247513e-10 | D80: ='erf Compare'!E80-'erf Compare'!B80 -> 0.01059097425 | E80: ='erf Compare'!F80-'erf Compare'!B80 -> 0.0003015521341 | F80: ='erf Compare'!G80-'erf Compare'!B80 -> 4.782420493e-08 | G80: ='erf Compare'!H80-'erf Compare'!B80 -> 0.002864184529 | H80: ='erf Compare'!I80-'erf Compare'!B80 -> 4.4504478e-05
A81: ='erf Compare'!A81 -> -1.9 | B81: ='erf Compare'!C81-'erf Compare'!B81 -> 0 | C81: ='erf Compare'!D81-'erf Compare'!B81 -> -1.726505605e-10 | D81: ='erf Compare'!E81-'erf Compare'!B81 -> 0.006991750696 | E81: ='erf Compare'!F81-'erf Compare'!B81 -> 0.000405039576 | F81: ='erf Compare'!G81-'erf Compare'!B81 -> 9.525861744e-08 | G81: ='erf Compare'!H81-'erf Compare'!B81 -> 0.00230220432 | H81: ='erf Compare'!I81-'erf Compare'!B81 -> 4.360325746e-05
A82: ='erf Compare'!A82 -> -2 | B82: ='erf Compare'!C82-'erf Compare'!B82 -> 1.221245327e-15 | C82: ='erf Compare'!D82-'erf Compare'!B82 -> 8.287925901e-12 | D82: ='erf Compare'!E82-'erf Compare'!B82 -> 0.004524942396 | E82: ='erf Compare'!F82-'erf Compare'!B82 -> 0.0004561264064 | F82: ='erf Compare'!G82-'erf Compare'!B82 -> 1.25437735e-07 | G82: ='erf Compare'!H82-'erf Compare'!B82 -> 0.001800112324 | H82: ='erf Compare'!I82-'erf Compare'!B82 -> 3.992274265e-05
A83: ='erf Compare'!A83 -> -2.1 | B83: ='erf Compare'!C83-'erf Compare'!B83 -> 8.881784197e-16 | C83: ='erf Compare'!D83-'erf Compare'!B83 -> 7.75108866e-11 | D83: ='erf Compare'!E83-'erf Compare'!B83 -> 0.002872009648 | E83: ='erf Compare'!F83-'erf Compare'!B83 -> 0.0004620425105 | F83: ='erf Compare'!G83-'erf Compare'!B83 -> 1.379029099e-07 | G83: ='erf Compare'!H83-'erf Compare'!B83 -> 0.001371216765 | H83: ='erf Compare'!I83-'erf Compare'!B83 -> 3.456804096e-05
A84: ='erf Compare'!A84 -> -2.2 | B84: ='erf Compare'!C84-'erf Compare'!B84 -> 0 | C84: ='erf Compare'!D84-'erf Compare'!B84 -> 8.801626095e-11 | D84: ='erf Compare'!E84-'erf Compare'!B84 -> 0.001788311397 | E84: ='erf Compare'!F84-'erf Compare'!B84 -> 0.0004345643118 | F84: ='erf Compare'!G84-'erf Compare'!B84 -> 1.354908307e-07 | G84: ='erf Compare'!H84-'erf Compare'!B84 -> 0.001018808148 | H84: ='erf Compare'!I84-'erf Compare'!B84 -> 2.8526332e-05
A85: ='erf Compare'!A85 -> -2.3 | B85: ='erf Compare'!C85-'erf Compare'!B85 -> 2.886579864e-15 | C85: ='erf Compare'!D85-'erf Compare'!B85 -> 7.369393984e-11 | D85: ='erf Compare'!E85-'erf Compare'!B85 -> 0.001092690839 | E85: ='erf Compare'!F85-'erf Compare'!B85 -> 0.0003862953311 | F85: ='erf Compare'!G85-'erf Compare'!B85 -> 1.226403303e-07 | G85: ='erf Compare'!H85-'erf Compare'!B85 -> 0.0007391022482 | H85: ='erf Compare'!I85-'erf Compare'!B85 -> 2.255664769e-05
A86: ='erf Compare'!A86 -> -2.4 | B86: ='erf Compare'!C86-'erf Compare'!B86 -> -2.220446049e-15 | C86: ='erf Compare'!D86-'erf Compare'!B86 -> 5.308897766e-11 | D86: ='erf Compare'!E86-'erf Compare'!B86 -> 0.0006552966299 | E86: ='erf Compare'!F86-'erf Compare'!B86 -> 0.0003282738128 | F86: ='erf Compare'!G86-'erf Compare'!B86 -> 1.039853476e-07 | G86: ='erf Compare'!H86-'erf Compare'!B86 -> 0.0005239914534 | H86: ='erf Compare'!I86-'erf Compare'!B86 -> 1.715816089e-05
A87: ='erf Compare'!A87 -> -2.5 | B87: ='erf Compare'!C87-'erf Compare'!B87 -> 2.331468352e-15 | C87: ='erf Compare'!D87-'erf Compare'!B87 -> 3.46047635e-11 | D87: ='erf Compare'!E87-'erf Compare'!B87 -> 0.0003857754325 | E87: ='erf Compare'!F87-'erf Compare'!B87 -> 0.0002688482103 | F87: ='erf Compare'!G87-'erf Compare'!B87 -> 8.344595137e-08 | G87: ='erf Compare'!H87-'erf Compare'!B87 -> 0.0003633144782 | H87: ='erf Compare'!I87-'erf Compare'!B87 -> 1.259305139e-05
A88: ='erf Compare'!A88 -> -2.6 | B88: ='erf Compare'!C88-'erf Compare'!B88 -> -4.107825191e-15 | C88: ='erf Compare'!D88-'erf Compare'!B88 -> 2.084932227e-11 | D88: ='erf Compare'!E88-'erf Compare'!B88 -> 0.0002229663207 | E88: ='erf Compare'!F88-'erf Compare'!B88 -> 0.0002134958344 | F88: ='erf Compare'!G88-'erf Compare'!B88 -> 6.381824669e-08 | G88: ='erf Compare'!H88-'erf Compare'!B88 -> 0.000246530777 | H88: ='erf Compare'!I88-'erf Compare'!B88 -> 8.938550525e-06
A89: ='erf Compare'!A89 -> -2.7 | B89: ='erf Compare'!C89-'erf Compare'!B89 -> -1.443289932e-14 | C89: ='erf Compare'!D89-'erf Compare'!B89 -> 1.172884012e-11 | D89: ='erf Compare'!E89-'erf Compare'!B89 -> 0.0001265286782 | E89: ='erf Compare'!F89-'erf Compare'!B89 -> 0.000165201618 | F89: ='erf Compare'!G89-'erf Compare'!B89 -> 4.674534093e-08 | G89: ='erf Compare'!H89-'erf Compare'!B89 -> 0.0001638130095 | H89: ='erf Compare'!I89-'erf Compare'!B89 -> 6.147340948e-06
A90: ='erf Compare'!A90 -> -2.8 | B90: ='erf Compare'!C90-'erf Compare'!B90 -> 2.298161661e-14 | C90: ='erf Compare'!D90-'erf Compare'!B90 -> 6.229017302e-12 | D90: ='erf Compare'!E90-'erf Compare'!B90 -> 7.050299643e-05 | E90: ='erf Compare'!F90-'erf Compare'!B90 -> 0.0001250745038 | F90: ='erf Compare'!G90-'erf Compare'!B90 -> 3.291430273e-08 | G90: ='erf Compare'!H90-'erf Compare'!B90 -> 0.0001066466307 | H90: ='erf Compare'!I90-'erf Compare'!B90 -> 4.102508646e-06
A91: ='erf Compare'!A91 -> -2.9 | B91: ='erf Compare'!C91-'erf Compare'!B91 -> 2.897682094e-14 | C91: ='erf Compare'!D91-'erf Compare'!B91 -> 3.105515844e-12 | D91: ='erf Compare'!E91-'erf Compare'!B91 -> 3.857516853e-05 | E91: ='erf Compare'!F91-'erf Compare'!B91 -> 9.298314916e-05 | F91: ='erf Compare'!G91-'erf Compare'!B91 -> 2.234153262e-08 | G91: ='erf Compare'!H91-'erf Compare'!B91 -> 6.80579188e-05 | H91: ='erf Compare'!I91-'erf Compare'!B91 -> 2.660099178e-06
A92: ='erf Compare'!A92 -> -3 | B92: ='erf Compare'!C92-'erf Compare'!B92 -> 1.34336986e-14 | C92: ='erf Compare'!D92-'erf Compare'!B92 -> 1.436295527e-12 | D92: ='erf Compare'!E92-'erf Compare'!B92 -> 2.072492911e-05 | E92: ='erf Compare'!F92-'erf Compare'!B92 -> 6.809308569e-05 | F92: ='erf Compare'!G92-'erf Compare'!B92 -> 1.465191257e-08 | G92: ='erf Compare'!H92-'erf Compare'!B92 -> 4.259283132e-05 | H92: ='erf Compare'!I92-'erf Compare'!B92 -> 1.677599702e-06
A93: ='erf Compare'!A93 -> -3.1 | B93: ='erf Compare'!C93-'erf Compare'!B93 -> -9.91429161e-14 | C93: ='erf Compare'!D93-'erf Compare'!B93 -> 5.065947661e-13 | D93: ='erf Compare'!E93-'erf Compare'!B93 -> 1.093348568e-05 | E93: ='erf Compare'!F93-'erf Compare'!B93 -> 4.926273158e-05 | F93: ='erf Compare'!G93-'erf Compare'!B93 -> 9.300532011e-09 | G93: ='erf Compare'!H93-'erf Compare'!B93 -> 2.615166936e-05 | H93: ='erf Compare'!I93-'erf Compare'!B93 -> 1.029929924e-06
A94: ='erf Compare'!A94 -> -3.2 | B94: ='erf Compare'!C94-'erf Compare'!B94 -> -2.177147351e-13 | C94: ='erf Compare'!D94-'erf Compare'!B94 -> 1.265654248e-14 | D94: ='erf Compare'!E94-'erf Compare'!B94 -> 5.663611515e-06 | E94: ='erf Compare'!F94-'erf Compare'!B94 -> 3.530186155e-05 | F94: ='erf Compare'!G94-'erf Compare'!B94 -> 5.722613827e-09 | G94: ='erf Compare'!H94-'erf Compare'!B94 -> 1.575917987e-05 | H94: ='erf Compare'!I94-'erf Compare'!B94 -> 6.160088446e-07
A95: ='erf Compare'!A95 -> -3.3 | B95: ='erf Compare'!C95-'erf Compare'!B95 -> 3.412825578e-13 | C95: ='erf Compare'!D95-'erf Compare'!B95 -> 4.134470544e-13 | D95: ='erf Compare'!E95-'erf Compare'!B95 -> 2.880587962e-06 | E95: ='erf Compare'!F95-'erf Compare'!B95 -> 2.511835057e-05 | F95: ='erf Compare'!G95-'erf Compare'!B95 -> 3.417970906e-09 | G95: ='erf Compare'!H95-'erf Compare'!B95 -> 9.323836475e-06 | H95: ='erf Compare'!I95-'erf Compare'!B95 -> 3.591806732e-07
A96: ='erf Compare'!A96 -> -3.4 | B96: ='erf Compare'!C96-'erf Compare'!B96 -> 3.58602037e-14 | C96: ='erf Compare'!D96-'erf Compare'!B96 -> 4.896083539e-14 | D96: ='erf Compare'!E96-'erf Compare'!B96 -> 1.43847004e-06 | E96: ='erf Compare'!F96-'erf Compare'!B96 -> 1.778507267e-05 | F96: ='erf Compare'!G96-'erf Compare'!B96 -> 1.982959241e-09 | G96: ='erf Compare'!H96-'erf Compare'!B96 -> 5.417871239e-06 | H96: ='erf Compare'!I96-'erf Compare'!B96 -> 2.04283455e-07
A97: ='erf Compare'!A97 -> -3.5 | B97: ='erf Compare'!C97-'erf Compare'!B97 -> -6.01601956e-08 | C97: ='erf Compare'!D97-'erf Compare'!B97 -> -6.016020038e-08 | D97: ='erf Compare'!E97-'erf Compare'!B97 -> 6.4506636e-07 | E97: ='erf Compare'!F97-'erf Compare'!B97 -> 1.24958315e-05 | F97: ='erf Compare'!G97-'erf Compare'!B97 -> -5.904143197e-08 | G97: ='erf Compare'!H97-'erf Compare'!B97 -> 3.032795849e-06 | H97: ='erf Compare'!I97-'erf Compare'!B97 -> 5.322782692e-08
A98: ='erf Compare'!A98 -> -3.6 | B98: ='erf Compare'!C98-'erf Compare'!B98 -> -2.723824477e-08 | C98: ='erf Compare'!D98-'erf Compare'!B98 -> -2.72382521e-08 | D98: ='erf Compare'!E98-'erf Compare'!B98 -> 3.121823511e-07 | E98: ='erf Compare'!F98-'erf Compare'!B98 -> 8.826681457e-06 | F98: ='erf Compare'!G98-'erf Compare'!B98 -> -2.66239838e-08 | G98: ='erf Compare'!H98-'erf Compare'!B98 -> 1.708005327e-06 | H98: ='erf Compare'!I98-'erf Compare'!B98 -> 3.420970718e-08
A99: ='erf Compare'!A99 -> -3.7 | B99: ='erf Compare'!C99-'erf Compare'!B99 -> -1.211459688e-08 | C99: ='erf Compare'!D99-'erf Compare'!B99 -> -1.211460265e-08 | D99: ='erf Compare'!E99-'erf Compare'!B99 -> 1.482473128e-07 | E99: ='erf Compare'!F99-'erf Compare'!B99 -> 6.233313331e-06 | F99: ='erf Compare'!G99-'erf Compare'!B99 -> -1.178617193e-08 | G99: ='erf Compare'!H99-'erf Compare'!B99 -> 9.448868007e-07 | H99: ='erf Compare'!I99-'erf Compare'!B99 -> 2.04109647e-08
A100: ='erf Compare'!A100 -> -3.8 | B100: ='erf Compare'!C100-'erf Compare'!B100 -> -5.292366656e-09 | C100: ='erf Compare'!D100-'erf Compare'!B100 -> -5.29237032e-09 | D100: ='erf Compare'!E100-'erf Compare'!B100 -> 6.907602768e-08 | E100: ='erf Compare'!F100-'erf Compare'!B100 -> 4.407128829e-06 | F100: ='erf Compare'!G100-'erf Compare'!B100 -> -5.121271407e-09 | G100: ='erf Compare'!H100-'erf Compare'!B100 -> 5.136840046e-07 | H100: ='erf Compare'!I100-'erf Compare'!B100 -> 1.15294122e-08
A101: ='erf Compare'!A101 -> -3.9 | B101: ='erf Compare'!C101-'erf Compare'!B101 -> -2.270684973e-09 | C101: ='erf Compare'!D101-'erf Compare'!B101 -> -2.270687083e-09 | D101: ='erf Compare'!E101-'erf Compare'!B101 -> 3.158018103e-08 | E101: ='erf Compare'!F101-'erf Compare'!B101 -> 3.123244355e-06 | F101: ='erf Compare'!G101-'erf Compare'!B101 -> -2.183793368e-09 | G101: ='erf Compare'!H101-'erf Compare'!B101 -> 2.745361958e-07 | H101: ='erf Compare'!I101-'erf Compare'!B101 -> 6.232576899e-09
A102: ='erf Compare'!A102 -> -4 | B102: ='erf Compare'!C102-'erf Compare'!B102 -> -9.56727142e-10 | C102: ='erf Compare'!D102-'erf Compare'!B102 -> -9.567282522e-10 | D102: ='erf Compare'!E102-'erf Compare'!B102 -> 1.416548046e-08 | E102: ='erf Compare'!F102-'erf Compare'!B102 -> 2.220511002e-06 | F102: ='erf Compare'!G102-'erf Compare'!B102 -> -9.136892354e-10 | G102: ='erf Compare'!H102-'erf Compare'!B102 -> 1.442898797e-07 | H102: ='erf Compare'!I102-'erf Compare'!B102 -> 3.245591129e-09
A103: ='erf Compare'!A103 -> -4.1 | B103: ='erf Compare'!C103-'erf Compare'!B103 -> -3.958264827e-10 | C103: ='erf Compare'!D103-'erf Compare'!B103 -> -3.958270378e-10 | D103: ='erf Compare'!E103-'erf Compare'!B103 -> 6.233885186e-09 | E103: ='erf Compare'!F103-'erf Compare'!B103 -> 1.584819826e-06 | F103: ='erf Compare'!G103-'erf Compare'!B103 -> -3.750281197e-10 | G103: ='erf Compare'!H103-'erf Compare'!B103 -> 7.459958762e-08 | H103: ='erf Compare'!I103-'erf Compare'!B103 -> 1.635097058e-09
A104: ='erf Compare'!A104 -> -4.2 | B104: ='erf Compare'!C104-'erf Compare'!B104 -> -1.607944888e-10 | C104: ='erf Compare'!D104-'erf Compare'!B104 -> -1.607947109e-10 | D104: ='erf Compare'!E104-'erf Compare'!B104 -> 2.691396217e-09 | E104: ='erf Compare'!F104-'erf Compare'!B104 -> 1.136019926e-06 | F104: ='erf Compare'!G104-'erf Compare'!B104 -> -1.509845582e-10 | G104: ='erf Compare'!H104-'erf Compare'!B104 -> 3.795079828e-08 | H104: ='erf Compare'!I104-'erf Compare'!B104 -> 7.992707607e-10
A105: ='erf Compare'!A105 -> -4.3 | B105: ='erf Compare'!C105-'erf Compare'!B105 -> -6.412892439e-11 | C105: ='erf Compare'!D105-'erf Compare'!B105 -> -6.412903542e-11 | D105: ='erf Compare'!E105-'erf Compare'!B105 -> 1.139903283e-09 | E105: ='erf Compare'!F105-'erf Compare'!B105 -> 8.180917869e-07 | F105: ='erf Compare'!G105-'erf Compare'!B105 -> -5.961142691e-11 | G105: ='erf Compare'!H105-'erf Compare'!B105 -> 1.900195812e-08 | H105: ='erf Compare'!I105-'erf Compare'!B105 -> 3.798914516e-10
A106: ='erf Compare'!A106 -> -4.4 | B106: ='erf Compare'!C106-'erf Compare'!B106 -> -2.510847086e-11 | C106: ='erf Compare'!D106-'erf Compare'!B106 -> -2.510858188e-11 | D106: ='erf Compare'!E106-'erf Compare'!B106 -> 4.735981607e-10 | E106: ='erf Compare'!F106-'erf Compare'!B106 -> 5.91978614e-07 | F106: ='erf Compare'!G106-'erf Compare'!B106 -> -2.307687375e-11 | G106: ='erf Compare'!H106-'erf Compare'!B106 -> 9.366302511e-09 | H106: ='erf Compare'!I106-'erf Compare'!B106 -> 1.758398982e-10
A107: ='erf Compare'!A107 -> -4.5 | B107: ='erf Compare'!C107-'erf Compare'!B107 -> -9.650391597e-12 | C107: ='erf Compare'!D107-'erf Compare'!B107 -> -9.650391597e-12 | D107: ='erf Compare'!E107-'erf Compare'!B107 -> 1.930118287e-10 | E107: ='erf Compare'!F107-'erf Compare'!B107 -> 4.304631763e-07 | F107: ='erf Compare'!G107-'erf Compare'!B107 -> -8.757883307e-12 | G107: ='erf Compare'!H107-'erf Compare'!B107 -> 4.545911647e-09 | H107: ='erf Compare'!I107-'erf Compare'!B107 -> 7.935641033e-11
A108: ='erf Compare'!A108 -> -4.6 | B108: ='erf Compare'!C108-'erf Compare'!B108 -> -3.640754365e-12 | C108: ='erf Compare'!D108-'erf Compare'!B108 -> -3.640754365e-12 | D108: ='erf Compare'!E108-'erf Compare'!B108 -> 7.715617034e-11 | E108: ='erf Compare'!F108-'erf Compare'!B108 -> 3.145584794e-07 | F108: ='erf Compare'!G108-'erf Compare'!B108 -> -3.257616399e-12 | G108: ='erf Compare'!H108-'erf Compare'!B108 -> 2.17289764e-09 | H108: ='erf Compare'!I108-'erf Compare'!B108 -> 3.495070899e-11
A109: ='erf Compare'!A109 -> -4.7 | B109: ='erf Compare'!C109-'erf Compare'!B109 -> -1.348143819e-12 | C109: ='erf Compare'!D109-'erf Compare'!B109 -> -1.348143819e-12 | D109: ='erf Compare'!E109-'erf Compare'!B109 -> 3.025191209e-11 | E109: ='erf Compare'!F109-'erf Compare'!B109 -> 2.309891692e-07 | F109: ='erf Compare'!G109-'erf Compare'!B109 -> -1.187383525e-12 | G109: ='erf Compare'!H109-'erf Compare'!B109 -> 1.023052199e-09 | H109: ='erf Compare'!I109-'erf Compare'!B109 -> 1.503341895e-11
A110: ='erf Compare'!A110 -> -4.8 | B110: ='erf Compare'!C110-'erf Compare'!B110 -> -4.899414208e-13 | C110: ='erf Compare'!D110-'erf Compare'!B110 -> -4.899414208e-13 | D110: ='erf Compare'!E110-'erf Compare'!B110 -> 1.163347196e-11 | E110: ='erf Compare'!F110-'erf Compare'!B110 -> 1.704443818e-07 | F110: ='erf Compare'!G110-'erf Compare'!B110 -> -4.239941731e-13 | G110: ='erf Compare'!H110-'erf Compare'!B110 -> 4.74530526e-10 | H110: ='erf Compare'!I110-'erf Compare'!B110 -> 6.318945367e-12
A111: ='erf Compare'!A111 -> -4.9 | B111: ='erf Compare'!C111-'erf Compare'!B111 -> -1.747491041e-13 | C111: ='erf Compare'!D111-'erf Compare'!B111 -> -1.747491041e-13 | D111: ='erf Compare'!E111-'erf Compare'!B111 -> 4.387601393e-12 | E111: ='erf Compare'!F111-'erf Compare'!B111 -> 1.263694153e-07 | F111: ='erf Compare'!G111-'erf Compare'!B111 -> -1.483257961e-13 | G111: ='erf Compare'!H111-'erf Compare'!B111 -> 2.168698554e-10 | H111: ='erf Compare'!I111-'erf Compare'!B111 -> 2.596700632e-12
A112: ='erf Compare'!A112 -> -5 | B112: ='erf Compare'!C112-'erf Compare'!B112 -> -6.117328866e-14 | C112: ='erf Compare'!D112-'erf Compare'!B112 -> -6.117328866e-14 | D112: ='erf Compare'!E112-'erf Compare'!B112 -> 1.622924017e-12 | E112: ='erf Compare'!F112-'erf Compare'!B112 -> 9.413073654e-08 | F112: ='erf Compare'!G112-'erf Compare'!B112 -> -5.084821453e-14 | G112: ='erf Compare'!H112-'erf Compare'!B112 -> 9.766920606e-11 | H112: ='erf Compare'!I112-'erf Compare'!B112 -> 1.043720665e-12
A113: ='erf Compare'!A113 -> -5.1 | B113: ='erf Compare'!C113-'erf Compare'!B113 -> -2.109423747e-14 | C113: ='erf Compare'!D113-'erf Compare'!B113 -> -2.109423747e-14 | D113: ='erf Compare'!E113-'erf Compare'!B113 -> 5.886402477e-13 | E113: ='erf Compare'!F113-'erf Compare'!B113 -> 7.043847738e-08 | F113: ='erf Compare'!G113-'erf Compare'!B113 -> -1.709743458e-14 | G113: ='erf Compare'!H113-'erf Compare'!B113 -> 4.334976822e-11 | H113: ='erf Compare'!I113-'erf Compare'!B113 -> 4.104494522e-13
A114: ='erf Compare'!A114 -> -5.2 | B114: ='erf Compare'!C114-'erf Compare'!B114 -> -7.105427358e-15 | C114: ='erf Compare'!D114-'erf Compare'!B114 -> -7.105427358e-15 | D114: ='erf Compare'!E114-'erf Compare'!B114 -> 2.093880624e-13 | E114: ='erf Compare'!F114-'erf Compare'!B114 -> 5.294617744e-08 | F114: ='erf Compare'!G114-'erf Compare'!B114 -> -5.662137426e-15 | G114: ='erf Compare'!H114-'erf Compare'!B114 -> 1.896405255e-11 | H114: ='erf Compare'!I114-'erf Compare'!B114 -> 1.578737141e-13
A115: ='erf Compare'!A115 -> -5.3 | B115: ='erf Compare'!C115-'erf Compare'!B115 -> -2.331468352e-15 | C115: ='erf Compare'!D115-'erf Compare'!B115 -> -2.331468352e-15 | D115: ='erf Compare'!E115-'erf Compare'!B115 -> 7.305267502e-14 | E115: ='erf Compare'!F115-'erf Compare'!B115 -> 3.997254316e-08 | F115: ='erf Compare'!G115-'erf Compare'!B115 -> -1.776356839e-15 | G115: ='erf Compare'!H115-'erf Compare'!B115 -> 8.177569732e-12 | H115: ='erf Compare'!I115-'erf Compare'!B115 -> 5.950795412e-14
A116: ='erf Compare'!A116 -> -5.4 | B116: ='erf Compare'!C116-'erf Compare'!B116 -> 0 | C116: ='erf Compare'!D116-'erf Compare'!B116 -> 0 | D116: ='erf Compare'!E116-'erf Compare'!B116 -> 2.498001805e-14 | E116: ='erf Compare'!F116-'erf Compare'!B116 -> 3.03073302e-08 | F116: ='erf Compare'!G116-'erf Compare'!B116 -> 0 | G116: ='erf Compare'!H116-'erf Compare'!B116 -> 3.476219312e-12 | H116: ='erf Compare'!I116-'erf Compare'!B116 -> 2.187139359e-14
A117: ='erf Compare'!A117 -> -5.5 | B117: ='erf Compare'!C117-'erf Compare'!B117 -> 0 | C117: ='erf Compare'!D117-'erf Compare'!B117 -> 0 | D117: ='erf Compare'!E117-'erf Compare'!B117 -> 8.437694987e-15 | E117: ='erf Compare'!F117-'erf Compare'!B117 -> 2.307537461e-08 | F117: ='erf Compare'!G117-'erf Compare'!B117 -> 0 | G117: ='erf Compare'!H117-'erf Compare'!B117 -> 1.456834653e-12 | H117: ='erf Compare'!I117-'erf Compare'!B117 -> 7.993605777e-15
A118: ='erf Compare'!A118 -> -5.6 | B118: ='erf Compare'!C118-'erf Compare'!B118 -> 0 | C118: ='erf Compare'!D118-'erf Compare'!B118 -> 0 | D118: ='erf Compare'!E118-'erf Compare'!B118 -> 2.775557562e-15 | E118: ='erf Compare'!F118-'erf Compare'!B118 -> 1.764094926e-08 | F118: ='erf Compare'!G118-'erf Compare'!B118 -> 0 | G118: ='erf Compare'!H118-'erf Compare'!B118 -> 6.01962924e-13 | H118: ='erf Compare'!I118-'erf Compare'!B118 -> 2.775557562e-15
A119: ='erf Compare'!A119 -> -5.7 | B119: ='erf Compare'!C119-'erf Compare'!B119 -> 0 | C119: ='erf Compare'!D119-'erf Compare'!B119 -> 0 | D119: ='erf Compare'!E119-'erf Compare'!B119 -> 8.881784197e-16 | E119: ='erf Compare'!F119-'erf Compare'!B119 -> 1.354019252e-08 | F119: ='erf Compare'!G119-'erf Compare'!B119 -> 0 | G119: ='erf Compare'!H119-'erf Compare'!B119 -> 2.452482661e-13 | H119: ='erf Compare'!I119-'erf Compare'!B119 -> 9.992007222e-16
A120: ='erf Compare'!A120 -> -5.8 | B120: ='erf Compare'!C120-'erf Compare'!B120 -> 0 | C120: ='erf Compare'!D120-'erf Compare'!B120 -> 0 | D120: ='erf Compare'!E120-'erf Compare'!B120 -> 0 | E120: ='erf Compare'!F120-'erf Compare'!B120 -> 1.043315789e-08 | F120: ='erf Compare'!G120-'erf Compare'!B120 -> 0 | G120: ='erf Compare'!H120-'erf Compare'!B120 -> 9.847678228e-14 | H120: ='erf Compare'!I120-'erf Compare'!B120 -> 0
A121: ='erf Compare'!A121 -> -5.9 | B121: ='erf Compare'!C121-'erf Compare'!B121 -> 0 | C121: ='erf Compare'!D121-'erf Compare'!B121 -> 0 | D121: ='erf Compare'!E121-'erf Compare'!B121 -> 0 | E121: ='erf Compare'!F121-'erf Compare'!B121 -> 8.069636293e-09 | F121: ='erf Compare'!G121-'erf Compare'!B121 -> 0 | G121: ='erf Compare'!H121-'erf Compare'!B121 -> 3.896882816e-14 | H121: ='erf Compare'!I121-'erf Compare'!B121 -> 0
A122: ='erf Compare'!A122 -> -6 | B122: ='erf Compare'!C122-'erf Compare'!B122 -> 0 | C122: ='erf Compare'!D122-'erf Compare'!B122 -> 0 | D122: ='erf Compare'!E122-'erf Compare'!B122 -> 0 | E122: ='erf Compare'!F122-'erf Compare'!B122 -> 6.264688546e-09 | F122: ='erf Compare'!G122-'erf Compare'!B122 -> 0 | G122: ='erf Compare'!H122-'erf Compare'!B122 -> 1.521005544e-14 | H122: ='erf Compare'!I122-'erf Compare'!B122 -> 0
A123: ='erf Compare'!A123 -> -6.1 | B123: ='erf Compare'!C123-'erf Compare'!B123 -> 0 | C123: ='erf Compare'!D123-'erf Compare'!B123 -> 0 | D123: ='erf Compare'!E123-'erf Compare'!B123 -> 0 | E123: ='erf Compare'!F123-'erf Compare'!B123 -> 4.88105123e-09 | F123: ='erf Compare'!G123-'erf Compare'!B123 -> 0 | G123: ='erf Compare'!H123-'erf Compare'!B123 -> 5.884182031e-15 | H123: ='erf Compare'!I123-'erf Compare'!B123 -> 0

Sheet Transport Calc Compare
A1: Parameter | C1: Value
A2: Co | C2: 1
A3: t | C3: 10
A4: v | C4: 1
A5: a | C5: 0.1
A6: Rf | C6: 1
A8: x | B8: term | C8: Series | D8: Winitzki | E8: Abra4 | F8: Abra6 | G8: Press | H8: Excel | I8: Lether1 | J8: Lether2
A9: 0 | B9: =(Rf*A9-v*t)/(2*SQRT(a*v*t*Rf)) -> -5 | C9: =Co/2*(1-deverf(B9)) -> 1 | D9: =Co/2*(1-winierf(B9)) -> 1 | E9: =Co/2*(1-abra4(B9)) -> 0.9999999529 | F9: =Co/2*(1-abra6(B9)) -> 1 | G9: =Co/2*(1-presserf(B9)) -> 1 | H9: =Co/2*(1-ERF(B9)) -> 1 | I9: =Co/2*(1-lether1(B9)) -> 1 | J9: =Co/2*(1-lether2(B9)) -> 1
A10: =A9+1 -> 1 | B10: =(Rf*A10-v*t)/(2*SQRT(a*v*t*Rf)) -> -4.5 | C10: =Co/2*(1-deverf(B10)) -> 0.9999999999 | D10: 0.9999999998 | E10: 0.9999997847 | F10: 0.9999999999 | G10: 0.9999999999 | H10: 0.9999999999 | I10: 0.9999999976 | J10: 0.9999999999
A11: =A10+1 -> 2 | B11: -4 | C11: 0.9999999918 | D11: 0.9999999847 | E11: 0.9999988816 | F11: 0.9999999923 | G11: 0.9999999923 | H11: 0.9999999923 | I11: 0.9999999197 | J11: 0.9999999902
A12: 3 | B12: -3.5 | C12: 0.9999995984 | D12: 0.9999992758 | E12: 0.9999933505 | F12: 0.9999996279 | G12: 0.9999996285 | H12: 0.9999996285 | I12: 0.999998082 | J12: 0.9999995718
A13: 4 | B13: -3 | C13: 0.9999889548 | D13: 0.9999785923 | E13: 0.9999549082 | F13: 0.9999889474 | G13: 0.9999889548 | H13: 0.9999889548 | I13: 0.9999676583 | J13: 0.999988116
A14: 5 | B14: -2.5 | C14: 0.999796524 | D14: 0.9996036363 | E14: 0.9996620999 | F14: 0.9997964823 | G14: 0.999796524 | H14: 0.999796524 | I14: 0.9996148668 | J14: 0.9997902275
A15: 6 | B15: -2 | C15: 0.9976611325 | D15: 0.9953986613 | E15: 0.9974330693 | F15: 0.9976610698 | G15: 0.9976611325 | H15: 0.9976611325 | I15: 0.9967610763 | J15: 0.9976411711
A16: 7 | B16: -1.5 | C16: 0.9830525732 | D16: 0.9667976297 | E16: 0.9831705383 | F16: 0.9830526332 | G16: 0.9830525748 | H16: 0.9830525732 | I16: 0.9807632607 | J16: 0.9830413432
A17: 8 | B17: -1 | C17: 0.9213503965 | D17: 0.855050262 | E17: 0.9213463317 | F17: 0.9213503449 | G17: 0.9213503939 | H17: 0.9213503965 | I17: 0.9193130576 | J17: 0.9213693122
A18: 9 | B18: -0.5 | C18: 0.7602499389 | D18: 0.6354296219 | E18: 0.7603124137 | F18: 0.7602500082 | G18: 0.7602499539 | H18: 0.7602499389 | I18: 0.760989981 | J18: 0.7602391236
A19: 10 | B19: 0 | C19: 0.5 | D19: 0.5 | E19: 0.5 | F19: 0.5 | G19: 0.500000015 | H19: 0.5 | I19: 0.5 | J19: 0.5
A20: 11 | B20: 0.5 | C20: 0.2397500611 | D20: 0.3645703781 | E20: 0.2396875863 | F20: 0.2397499918 | G20: 0.2397500461 | H20: 0.2397500611 | I20: 0.239010019 | J20: 0.2397608764
A21: 12 | B21: 1 | C21: 0.07864960353 | D21: 0.144949738 | E21: 0.0786536683 | F21: 0.07864965513 | G21: 0.07864960612 | H21: 0.07864960353 | I21: 0.08068694236 | J21: 0.07863068775
A22: 13 | B22: 1.5 | C22: 0.01694742676 | D22: 0.03320237027 | E22: 0.01682946172 | F22: 0.0169473668 | G22: 0.01694742517 | H22: 0.01694742676 | I22: 0.01923673931 | J22: 0.01695865677
A23: 14 | B23: 2 | C23: 0.002338867491 | D23: 0.004601338689 | E23: 0.002566930694 | F23: 0.002338930209 | G23: 0.002338867495 | H23: 0.002338867491 | I23: 0.003238923652 | J23: 0.002358828862
A24: 15 | B24: 2.5 | C24: 0.0002034760087 | D24: 0.000396363725 | E24: 0.0003379001139 | F24: 0.0002035177317 | G24: 0.000203476026 | H24: 0.0002034760087 | I24: 0.0003851332478 | J24: 0.0002097725344
A25: 16 | B25: 3 | C25: 1.104524849e-05 | D25: 2.140771305e-05 | E25: 4.509179134e-05 | F25: 1.105257445e-05 | G25: 1.104524921e-05 | H25: 1.10452485e-05 | I25: 3.234166415e-05 | J25: 1.188404834e-05
A26: 17 | B26: 3.5 | C26: 4.01629284e-07 | D26: 7.24162464e-07 | E26: 6.649545034e-06 | F26: 3.72108568e-07 | G26: 3.715491838e-07 | H26: 3.715491862e-07 | I26: 1.918027208e-06 | J26: 4.282431975e-07
A27: 18 | B27: 4 | C27: 8.186992528e-09 | D27: 1.526973276e-08 | E27: 1.118442494e-06 | F27: 7.730147911e-09 | G27: 7.708628402e-09 | H27: 7.708628957e-09 | I27: 8.033193238e-08 | J27: 9.809788093e-09
A28: 19 | B28: 4.5 | C28: 1.031332242e-10 | D28: 1.996391386e-10 | E28: 2.153347214e-07 | F28: 9.875428253e-11 | G28: 9.830802838e-11 | H28: 9.830802838e-11 | I28: 2.376089048e-09 | J28: 1.428114293e-10
A29: 20 | B29: 5 | C29: 7.993050666e-13 | D29: 1.610767075e-12 | E29: 4.706616757e-08 | F29: 7.738809593e-13 | G29: 7.687184223e-13 | H29: 7.687184223e-13 | I29: 4.963390809e-11 | J29: 1.321165399e-12
A30: 21 | B30: 5.5 | C30: 3.774758284e-15 | D30: 7.993605777e-15 | E30: 1.153769108e-08 | F30: 3.719247132e-15 | G30: 3.663735981e-15 | H30: 3.663735981e-15 | I30: 7.321920847e-13 | J30: 7.771561172e-15
